Cogmind - Beta 16.1 @@@ ROGUE MODE // 2026.01.16 @ 02:23:34 Player: Spoodle Result: Destroyed by Alpha 7 with Multirail Performance ------------- Evolutions (9) 4500 Regions Visited (35) 7000 Robots Destroyed (544) 2720 Value Destroyed (25928) 25928 Prototype IDs (93) 1860 Alien Tech Used (8) 1600 Bonus (12856) 12856 TOTAL SCORE: 56464 Bonus ------- High Alert Combat Kills 2732 Follower Combat Kills 3437 Hunted by Unchained 500 Entered Garrisons 1000 Used RIF Installer 2000 Network Hubs Disabled 200 Met Zhirov 300 Built Enhanced Grunts 300 A7 Reached Mainframe 300 Met R17 at Cetus 500 Met R17 at Research 2000 Friendly Fire -413 Cogmind --------- Core Integrity 0/1600 Matter 12/300 Energy 100/100 System Corruption 0% +Membrane Temperature Cool (0) Movement Core (50) Location -1/Command Parts ------- > --- POWER (3) -------- (None) > --- PROPULSION (6) --- (None) > --- UTILITY (12) ----- (None) > --- WEAPON (4) ------- (None) > --- INVENTORY (5) ---- Advanced Sensor Array Heavy Regenerative Plating Experimental Force Field Railgun Peak State ------------ > --- POWER ------------ Particle Reactor Vortex Chain Reactor > --- PROPULSION ------- Experimental Biometal Heavy Treads Experimental Biometal Heavy Treads High-density Centrium Heavy Treads > --- UTILITY ---------- Coolant Network Huge Storage Unit Experimental Signal Interpreter Advanced Target Analyzer Core Analyzer Phase Armor Experimental EM Shield Experimental Force Field Relay Coupler [NC] Mini Drone Bay > --- WEAPON ----------- Advanced Plasma Rifle Heavy Wave Gun Heavy Wave Gun Heavy Wave Gun > --- INVENTORY -------- Vortex Chain Reactor Experimental Cooling System Advanced Sensor Array Improved Transmission Jammer Advanced Cloaking Device Heavy Regenerative Plating Graphene Brace Thermal Barrier Improved Shock Absorption System Advanced Hardlight Generator Improved Force Field Mini Drone Bay Mini Drone Bay Heavy Wave Gun Heavy Wave Gun Heavy Neutron Cannon Long-range Missile Launcher Neutron Missile Launcher Sigix Terminator Advanced Remote Datajack Core Stripper [Rating: 234] Favorites ----------- Power Quantum Reactor Engine Cooled Ion Engine Power Core Neutrino Core Reactor Quantum Reactor Propulsion Light Treads Treads Light Treads Leg Aluminum Leg Wheel Armored Huge Wheel Flight Unit Impulse Thruster Array Utility Huge Storage Unit Device Improved Transmission Jammer Storage Huge Storage Unit Processor Improved Signal Interpreter Hackware Relay Coupler [Grunt] Protection Centrium Medium Armor Plating Artifact Phase Armor Weapon Enhanced Autogun Energy Gun Heavy Wave Gun Energy Cannon Heavy Neutron Cannon Ballistic Gun Enhanced Autogun Ballistic Cannon Compact Mass Driver Launcher Long-range Missile Launcher Special Weapon Remote Datajack Impact Weapon Core Stripper Slashing Weapon Chainsword Special Melee Weapon Improved Datajack Build | -11 -10 -9 -9 -8 -8 -8 -8 -7 -7 -7 -7 -7 -6 -6 -6 -6 -6 -6 -5 -5 -5 -5 -4 -4 -4 -4 -4 -4 -3 -3 -2 -2 -2 -1 -1 ------- Run | Yrd Mat Mat Min Mat Gar Mat Gar Fac Gar Fac Low Low Fac Ext Cet Arc Hub Gar Fac Upp Upp Zhi Pro Fac Was Fac Arm Lab Res Gar Res Qua Sec Acc Com Slots Evolved 18 | . . 2 . 2 . . . 2 . . . . 2 . . . . . 2 . . . . 2 . . . . 2 . 2 . . 2 . Power 2 | . . . . . . . . . . . . . . . . . . . . . . . . . . . . . 1 . . . . 1 . Propulsion 4 | . . . . 1 . . . 1 . . . . . . . . . . . . . . . . . . . . . . 2 . . . . Utility 10 | . . 1 . 1 . . . 1 . . . . 1 . . . . . 2 . . . . 2 . . . . 1 . . . . 1 . Weapon 2 | . . 1 . . . . . . . . . . 1 . . . . . . . . . . . . . . . . . . . . . . Parts Attached 326 | 7 17 22 1 20 3 5 12 22 14 25 2 3 8 4 8 8 2 4 7 3 4 3 2 9 8 4 10 . 11 13 3 24 7 5 26 Power 28 | 1 2 4 . 1 . . . . . 2 . . . 2 1 . . . . . 1 1 1 . 2 . . . 2 1 . 2 . 1 4 Engine 10 | 1 2 4 . 1 . . . . . 2 . . . . . . . . . . . . . . . . . . . . . . . . . Core 4 | . . . . . . . . . . . . . . 2 . . . . . . 1 . . . . . . . 1 . . . . . . Reactor 14 | . . . . . . . . . . . . . . . 1 . . . . . . 1 1 . 2 . . . 1 1 . 2 . 1 4 Propulsion 69 | 2 5 6 . 4 1 2 3 9 2 3 . 1 2 . 1 . 1 1 1 . . . 1 2 3 . 3 . 1 . . 4 2 . 9 Treads 45 | . 1 3 . 4 1 2 3 5 . 1 . 1 1 . 1 . 1 1 1 . . . 1 2 2 . 3 . 1 . . 3 2 . 5 Leg 4 | 2 1 . . . . . . . . . . . . . . . . . . . . . . . 1 . . . . . . . . . . Wheel 19 | . 3 3 . . . . . 4 2 2 . . 1 . . . . . . . . . . . . . . . . . . 1 . . 3 Hover . | . . . . . . . . . . . . . . . . . . . . . . . . . . . . . . . . . . . . Flight 1 | . . . . . . . . . . . . . . . . . . . . . . . . . . . . . . . . . . . 1 Utility 134 | 2 6 5 . 3 2 2 6 8 10 14 2 1 2 . 3 5 1 2 5 2 2 1 . 3 . . 5 . 7 7 1 12 5 3 7 Device 62 | 1 . 2 . 1 1 . 2 2 2 5 1 1 . . 1 3 . 1 3 2 2 . . 1 . . 4 . 6 3 . 7 3 2 6 Storage 7 | 1 2 . . . . . . 1 . . . . 1 . . . . . . . . . . 1 . . . . . . . . 1 . . Processor 9 | . . . . . . . . 1 . 2 . . 1 . . . . 1 . . . . . . . . . . . 1 . 2 . . 1 Hackware 30 | . . . . 1 . 2 2 4 7 4 . . . . . . 1 . 2 . . . . 1 . . 1 . . 3 1 1 . . . Protection 24 | . 4 3 . 1 1 . 2 . 1 3 1 . . . 2 2 . . . . . 1 . . . . . . 1 . . 1 . 1 . Artifact 2 | . . . . . . . . . . . . . . . . . . . . . . . . . . . . . . . . 1 1 . . Weapon 95 | 2 4 7 1 12 . 1 3 5 2 6 . 1 4 2 3 3 . 1 1 1 1 1 . 4 3 4 2 . 1 5 2 6 . 1 6 Energy Gun 31 | 1 . . 1 5 . . . 3 1 . . 1 2 . 1 2 . . . . . 1 . 3 1 2 1 . 1 . . 3 . . 2 Energy Cannon 6 | . . . . 1 . . . . . . . . 1 . . . . . 1 . . . . . . . 1 . . 1 . . . 1 . Ballistic Gun 40 | 1 4 7 . 5 . . 2 1 1 5 . . 1 . 2 1 . 1 . 1 1 . . . 1 2 . . . . 2 . . . 2 Ballistic Cannon 2 | . . . . . . . . . . . . . . . . . . . . . . . . . . . . . . 1 . 1 . . . Launcher 6 | . . . . . . . . . . . . . . 2 . . . . . . . . . . 1 . . . . 2 . . . . 1 Special Weapon 6 | . . . . 1 . . 1 . . 1 . . . . . . . . . . . . . 1 . . . . . . . 1 . . 1 Impact Weapon 2 | . . . . . . . . . . . . . . . . . . . . . . . . . . . . . . 1 . 1 . . . Slashing Weapon 1 | . . . . . . . . 1 . . . . . . . . . . . . . . . . . . . . . . . . . . . Piercing Weapon . | . . . . . . . . . . . . . . . . . . . . . . . . . . . . . . . . . . . . Special Melee Weapon 1 | . . . . . . 1 . . . . . . . . . . . . . . . . . . . . . . . . . . . . . Unidentified Prototypes 52 | . . 2 1 4 . . . 2 . 2 . . 2 . 3 1 . . . . . 3 . 2 2 2 3 . 2 8 . 9 3 . 1 Corrupted Parts 4 | . . . . . . . . . . . . 1 . . . 1 . . . . . . 2 . . . . . . . . . . . . System Corruption 37 | . . . . . . . . . . . . 5 . . . 12 . . . . . . 20 . . . . . . . . . . . . Parts Lost 84 | . 5 1 . 1 . . 5 5 9 3 1 1 . 3 2 1 . . 3 . 1 . . 9 . . . . . . 3 2 . 1 28 Power 9 | . 1 . . . . . . . 1 1 . . . 1 . . . . . . 1 . . . . . . . . . 1 . . . 3 Propulsion 27 | . 2 . . . . . 2 2 4 1 1 . . . . . . . 1 . . . . 3 . . . . . . 1 2 . . 8 Utility 25 | . 2 . . 1 . . 2 2 . 1 . 1 . 2 . . . . 1 . . . . 3 . . . . . . . . . 1 9 Weapon 23 | . . 1 . . . . 1 1 4 . . . . . 2 1 . . 1 . . . . 3 . . . . . . 1 . . . 8 Highest Loss Streak 21 | . 3 1 . 1 . . 4 5 6 1 1 1 . 2 2 1 . . 2 . 1 . . 4 . . . . . . 1 1 . 1 21 To Critical Strikes 5 | . . . . . . . 1 . 1 1 . . . . . . . . . . . . . . . . . . . . . . . . 2 Average Backups 22 | 4 18 22 21 20 22 22 21 23 21 22 22 23 24 23 22 22 22 22 21 22 23 22 22 20 19 22 22 22 22 22 22 22 20 20 20 Power 1 | . 1 . 1 1 1 1 1 . . . . 1 1 . . 1 1 1 1 1 1 1 1 1 1 2 2 2 1 1 . 1 1 1 . Propulsion 2 | 1 4 6 5 5 5 4 4 4 2 . 1 . 1 1 1 2 2 2 2 2 2 2 2 2 2 2 2 2 2 2 . . . . 2 Utility 10 | . 7 9 9 8 8 10 8 10 12 14 10 10 10 10 10 10 9 10 9 10 11 11 11 9 9 9 9 10 11 12 12 13 10 11 9 Weapon 7 | . 5 5 4 6 7 6 6 6 5 6 10 10 10 10 9 8 9 8 7 7 7 6 6 6 4 6 7 7 6 6 6 7 7 7 6 Tool/Special . | . . . . . . . . . . . . . . . . . . . . . . . . . . . . . . . . . . . . Unused Backups 61 | . 2 16 2 2 1 . 2 1 1 3 . . 3 2 . 1 1 1 . . . . . . . 2 1 . 3 1 1 6 2 . 7 Power 7 | . 1 2 . . . . . . . . . . . 2 . . . . . . . . . . . . . . . . . 1 . . 1 Propulsion 6 | . . 2 . 1 . . . . . . . . . . . . . . . . . . . . . . . . . . 1 . . . 2 Utility 29 | . 1 3 2 . . . 2 1 1 2 . . 1 . . 1 1 1 . . . . . . . 2 1 . 2 1 . 4 2 . 1 Weapon 17 | . . 8 . . 1 . . . . 1 . . 2 . . . . . . . . . . . . . . . 1 . . 1 . . 3 Tool/Special 2 | . . 1 . 1 . . . . . . . . . . . . . . . . . . . . . . . . . . . . . . . Average Slot Usage (%) 89 | . 99 95 88 89 90 90 92 93 88 95 93 91 87 92 92 93 92 93 93 94 90 93 94 92 86 89 88 89 88 88 85 82 76 75 71 Engine 3 | . 13 10 11 9 9 9 9 7 6 6 7 7 6 . . . . . . . . . . . . . . . . . . . . . . Reactor 3 | . . . . . . . . . . . . . . . 4 6 6 6 5 5 1 1 5 5 5 5 5 5 8 9 8 7 4 7 8 Treads 14 | . 11 8 22 27 27 27 27 20 14 14 15 14 5 13 13 13 13 13 10 11 11 11 11 11 9 10 9 10 9 9 12 12 13 12 10 Wheel 4 | . 11 13 . . . . . 4 6 11 8 7 9 6 6 6 6 6 5 5 5 5 5 3 . . . . . . . . . . 1 Device 12 | . 2 7 . 4 9 . 8 9 2 7 14 14 13 10 6 13 14 7 13 12 17 16 17 22 15 15 16 21 19 23 21 17 12 15 15 Storage 6 | . 14 11 11 9 9 9 9 7 7 7 7 7 6 6 6 6 6 6 5 5 5 5 5 5 5 5 5 5 4 4 4 4 4 4 3 Processor 7 | . . . . . . . . 6 3 . 7 7 11 13 13 11 6 12 11 11 11 11 11 10 10 10 10 10 9 9 8 14 17 12 11 Hackware 5 | . . . . 4 . 8 6 11 17 16 . . . . . . . . 6 9 5 5 5 5 10 10 10 10 9 6 6 3 4 4 3 Protection 6 | . 11 11 11 9 9 9 5 . 3 3 7 6 6 8 13 7 10 11 7 5 5 5 5 7 8 10 7 5 7 5 4 1 . 2 3 Energy Gun 6 | . 2 . . 6 9 9 8 5 8 4 . . . . . 7 10 8 12 16 12 10 6 5 9 8 4 5 4 3 . 12 12 14 12 Ballistic Gun 13 | . 25 33 33 20 18 17 14 9 3 9 21 18 20 25 25 18 13 13 6 5 9 11 11 9 9 8 12 10 11 13 14 1 . . . Peak Build Rating 234 | 7 9 23 24 35 35 35 38 50 49 54 47 56 69 72 96 92 92 90 99 98 99 97 106 125 127 128 133 132 157 161 175 213 223 234 218 Average Rating 89 | 5 8 16 23 29 34 34 35 42 45 46 45 52 64 68 82 85 89 88 94 94 91 95 96 113 118 123 127 132 151 153 168 187 213 222 182 On Entrance 86 | . 7 9 23 23 35 34 35 38 41 41 43 46 55 68 68 88 88 89 89 94 95 95 96 98 103 121 128 132 132 149 161 166 210 210 216 Avg Prop Armor Cover (%) 12 | . 9 9 . . . . . 14 15 17 13 12 10 9 8 9 10 11 12 13 13 13 13 10 . . . . . . . 1 . . 15 Naked Turns 67 | . . . . . . . . . . . . . . . . . . . . . . . . . . . . . . . . . . . 67 Heaviest Build 230 | 12 90 112 112 114 114 114 115 101 102 110 124 124 121 134 130 134 140 140 142 135 138 123 127 145 143 135 138 130 166 168 182 203 190 213 230 Greatest Support 270 | 20 20 40 40 60 60 60 60 80 28 32 32 28 56 28 28 28 28 28 28 28 28 28 28 137 160 145 145 145 155 155 225 270 270 260 260 Greatest Overweight (x) 10 | . 8 5 2 1 1 1 1 3 3 3 7 7 4 4 4 4 4 4 6 4 4 4 4 5 1 . 1 . 1 1 . 1 . . 10 Average Overweight (x) 2 | . 3 2 2 1 1 1 1 2 3 3 5 3 2 4 4 4 4 4 4 4 3 4 4 3 . . . . . . . . . . . Largest Inventory Capacity 25 | 8 25 25 25 25 25 25 25 25 25 25 25 25 25 25 25 25 25 25 25 25 25 25 25 25 25 25 25 25 25 25 25 25 25 25 25 Average Capacity 24 | 6 21 25 25 25 25 25 25 25 25 25 25 25 25 25 25 25 25 25 25 25 25 25 25 25 25 25 25 25 25 25 25 25 25 25 23 Most Carried 25 | 5 25 25 25 25 25 25 25 25 25 25 24 25 25 25 25 25 25 25 24 25 25 25 25 25 25 25 25 24 25 25 25 25 25 25 25 Average Carried 23 | 4 19 24 25 24 24 24 22 24 22 23 23 23 24 24 23 24 24 24 23 24 25 24 24 22 23 24 24 24 24 24 22 24 24 24 22 Final Capacity 25 | 8 25 25 25 25 25 25 25 25 25 25 25 25 25 25 25 25 25 25 25 25 25 25 25 25 25 25 25 25 25 25 25 25 25 25 25 Final Carried 25 | 5 22 25 25 25 25 25 24 25 19 24 24 24 25 23 25 25 25 25 24 25 25 24 25 18 25 25 25 24 25 25 24 25 25 25 25 Class Distribution -------------------- 28% | Scavenger-Tank 11% | Tank 7% | Skirmisher 6% | Bothacker-Tank 6% | Bothacker-Mutant 6% | Scavenger-Skirmisher 5% | Mutant 4% | Bothacker-Skirmisher 4% | Assassin 3% | Infiltrator-Gunner 3% | Infiltrator-Tank Dominant Class ---------------- Mutant | -10/Materials Tank | -9/Materials Tank | -9/Mines Scavenger-Tank | -8/Materials Scavenger-Tank | -8/Garrison Scavenger-Tank | -8/Materials Tank | -8/Garrison Bothacker-Tank | -7/Factory Bothacker-Mutant | -7/Garrison Bothacker-Mutant | -7/Factory Skirmisher | -7/Lower Caves Assassin | -7/Lower Caves Assassin | -6/Factory Skirmisher | -6/Extension Commander-Tank | -6/Cetus Commander-Tank | -6/Archives Scavenger-Tank | -6/Hub_04(d) Bothacker-Tank | -6/Garrison Bothacker-Tank | -5/Factory Bothacker-Skirmisher | -5/Upper Caves Scavenger-Skirmisher | -5/Upper Caves Scavenger-Skirmisher | -5/Zhirov Scavenger-Skirmisher | -4/Proximity Caves Scavenger-Skirmisher | -4/Factory Scavenger-Tank | -4/Waste Scavenger-Tank | -4/Factory Tank | -4/Armory Tank | -4/Lab Scavenger-Tank | -3/Research Scavenger-Tank | -3/Garrison Scavenger-Tank | -2/Research Scavenger-Tank | -2/Quarantine Infiltrator-Gunner | -2/Section 7 Infiltrator-Gunner | -1/Access Tank | -1/Command Resources | -11 -10 -9 -9 -8 -8 -8 -8 -7 -7 -7 -7 -7 -6 -6 -6 -6 -6 -6 -5 -5 -5 -5 -4 -4 -4 -4 -4 -4 -3 -3 -2 -2 -2 -1 -1 ----------- Run | Yrd Mat Mat Min Mat Gar Mat Gar Fac Gar Fac Low Low Fac Ext Cet Arc Hub Gar Fac Upp Upp Zhi Pro Fac Was Fac Arm Lab Res Gar Res Qua Sec Acc Com Matter Collected 19560 | 302 546 859 152 503 332 243 562 865 465 1433 197 265 488 1018 464 553 141 478 655 236 172 . 70 906 245 659 806 . 952 960 1525 1183 521 360 444 Remotely 92 | . . . . . . . . . . . . . . . . . . . . . . . . . . . . . . . 92 . . . . Salvage Created 27946 | 166 806 1829 123 846 458 402 950 562 436 1293 136 153 497 1166 257 452 276 833 583 213 81 . 10 2078 310 345 1245 . 886 1132 2385 2344 970 1217 2506 Parts 1258 | 10 48 114 6 49 17 27 51 26 11 75 6 9 20 65 10 22 12 45 36 8 8 . . 96 3 16 57 . 33 49 111 88 26 35 69 Haulers Intercepted 14 | . 2 3 . 4 . . . . . . . . 1 . . . . . . . . . . . . . . . 4 . . . . . . Recyclers Shooed 28 | 1 2 5 . . . . . 1 . 5 . . . . . . . . 1 . . . . 4 . . . . 2 . 4 1 1 . 1 Parts Field Recycled . | . . . . . . . . . . . . . . . . . . . . . . . . . . . . . . . . . . . . Retrieved Matter . | . . . . . . . . . . . . . . . . . . . . . . . . . . . . . . . . . . . . Parts Self-Destructed 23 | . . . . . . . . . . . 5 9 . . . . . . . 5 4 . . . . . . . . . . . . . . Prevented . | . . . . . . . . . . . . . . . . . . . . . . . . . . . . . . . . . . . . Parts Restored . | . . . . . . . . . . . . . . . . . . . . . . . . . . . . . . . . . . . . Kills | -11 -10 -9 -9 -8 -8 -8 -8 -7 -7 -7 -7 -7 -6 -6 -6 -6 -6 -6 -5 -5 -5 -5 -4 -4 -4 -4 -4 -4 -3 -3 -2 -2 -2 -1 -1 ------- Run | Yrd Mat Mat Min Mat Gar Mat Gar Fac Gar Fac Low Low Fac Ext Cet Arc Hub Gar Fac Upp Upp Zhi Pro Fac Was Fac Arm Lab Res Gar Res Qua Sec Acc Com Combat Hostiles Destroyed 358 | . 16 30 3 10 12 7 20 6 5 13 2 1 4 19 4 2 2 20 13 7 6 . 2 24 . 4 19 . 4 14 21 23 11 12 22 Guns 299 | . 16 30 3 10 12 7 20 6 5 13 2 1 4 17 4 2 2 14 9 3 1 . 2 10 . 4 19 . 3 14 17 18 7 7 17 Cannons 4 | . . . . . . . . . . . . . . . . . . . . . . . . 2 . . . . 1 . . 1 . . . AOE 42 | . . . . . . . . . . . . . . 2 . . . 6 4 4 5 . . 12 . . . . . . 4 3 1 . 1 Classes Destroyed 23 | 2 5 4 . . 2 1 1 . . . . 1 . . . . 1 . 1 . . . 1 . . . . . 1 . . 3 . . . Worker 52 | . 2 5 . 6 . . . . . 7 . . 1 2 . . 2 . 1 . . . . 9 . . . . 3 . 4 . . 2 8 Builder 27 | . . 1 . 1 . 1 . 1 . 3 . . . 1 . . 3 . 1 . . . . 5 . 1 . . . . 5 2 . 2 . Tunneler 10 | 5 . . . . . . . . . 1 . . . 1 . . . . 1 . . . . 2 . . . . . . . . . . . Hauler 14 | . 2 3 . 4 . . . . . . . . 1 . . . . . . . . . . . . . . . 4 . . . . . . Recycler 41 | 1 2 3 . 2 . . . 3 . 7 . . 1 1 . . . . 1 . . . . 5 . . . . 1 . 4 2 1 1 6 Mechanic 5 | . . 1 . . . 1 . . . . . . . . . . . . . . . . . . . . 1 . . . 1 1 . . . Operator 12 | . . 1 . 1 . . . . . . . . . . . 9 . . . . . . . . . . 1 . . . . . . . . Drone 2 | . . . . . . . . . . . . . . . . . . . . . . . 2 . . . . . . . . . . . . Watcher 21 | . 3 1 . 3 . . . 1 . 1 . . . 1 . . . . . . . . . 1 . . 1 . . . 5 1 . 1 2 Swarmer 78 | . 7 4 . 4 4 . 6 . 1 4 . . . 4 . . . 8 9 6 5 . . 4 . . 4 . . . 4 . . . 4 Grunt 112 | . 9 21 3 5 3 3 8 3 3 4 2 . 2 3 . . . 2 . . . . . 14 . 2 4 . 1 8 2 9 1 . . Brawler 8 | . . . . . 1 1 . . . 1 . . . . . . . 3 . . . . . . . . . . . 2 . . . . . Duelist 9 | . . . . . 1 . . . . . . . . . . . . 1 . . . . . . . . 4 . . . 2 1 . . . Researcher 1 | . . . . . . . . . . . . . . . . . . . . . . . . . . . . . . . . 1 . . . Sentry 41 | . . 5 . 1 3 2 3 1 . 1 . . . 7 . 2 . . 2 1 . . . . . 1 2 . 1 1 3 . 2 1 2 Specialist 5 | . . . . . . . . . . . . . . . . . 1 . . . . . . . . . 2 . . . 2 . . . . Hunter 38 | . . . . . . 1 . . 1 . . . 1 1 . . . 4 1 . 1 . . 4 . 1 1 . . . 4 2 2 6 8 Programmer 43 | . . . . . . . 3 2 . 3 . . 1 . . . . 1 . . . . . 2 . . 3 . . 1 4 9 4 5 5 Heavy 1 | . . . . . . . . . . . . . . . . . . . 1 . . . . . . . . . . . . . . . . Behemoth 9 | . . . . . . . . . . . . 1 . 2 . . 1 1 . . . . . . . . . . 1 2 . . . . 1 Cetus Guard 4 | . . . . . . . . . . . . . . . 4 . . . . . . . . . . . . . . . . . . . . S7 Guard 2 | . . . . . . . . . . . . . . . . . . . . . . . . . . . . . . . . . 2 . . Enhanced Grunt 1 | . . . . . . . . . . . . . . . . . 1 . . . . . . . . . . . . . . . . . . Combat Programmer 2 | . . . . . . . . . . . . . . . . . . . . . . . . . . . . . . . . . . . 2 Striker 1 | . . . . . . . . . . . . . . . . . . . . . . . . . . . . . 1 . . . . . . Alpha 7 1 | . . . . . . . . . . . . . . . . . . . . . . . . . . . . . . . . 1 . . . Fortress 1 | . . . . . . . . . . . . . . . . . . . . . . . . . . . . . . . . 1 . . . Decomposer 3 | . . . . . . . . . . . 1 . . . . . . . . 2 . . . . . . . . . . . . . . . Packrat 1 | . . . . . . . . . . . . 1 . . . . . . . . . . . . . . . . . . . . . . . Thug 1 | . . . . . . . . . . . . . . . . . . . . . . . . . . 1 . . . . . . . . . Savage 1 | . . . . . . . . . . . . . . 1 . . . . . . . . . . . . . . . . . . . . . Butcher 1 | . . . . . . . . . . . . . . 1 . . . . . . . . . . . . . . . . . . . . . Best Kill Streak 23 | 3 5 8 3 6 5 3 6 2 2 5 2 1 3 8 3 4 5 10 6 4 5 . 2 23 . 4 4 . 3 3 9 5 6 7 7 Combat Bots Only 10 | . 5 5 3 3 5 2 6 2 2 4 2 1 2 7 3 2 1 10 5 4 5 . 2 8 . 2 4 . 2 3 5 4 6 5 4 Max Kills in Single Turn 5 | 1 1 2 1 2 2 2 2 1 1 1 1 1 1 3 1 1 5 5 4 4 4 . 1 4 . 1 3 . 2 2 4 2 1 2 2 Gunslinging 2 | . . 1 . 1 . . . . . . . . . . . . . . 1 1 . . . . . . 2 . 1 1 1 1 . . . Exploded 5 | . . . . . . . . . . . . . . 1 . . . 5 4 4 4 . . 3 . . . . . . 2 2 1 . 1 Melee . | . . . . . . . . . . . . . . . . . . . . . . . . . . . . . . . . . . . . Uniques/NPCs Destroyed . | . . . . . . . . . . . . . . . . . . . . . . . . . . . . . . . . . . . . Combat | -11 -10 -9 -9 -8 -8 -8 -8 -7 -7 -7 -7 -7 -6 -6 -6 -6 -6 -6 -5 -5 -5 -5 -4 -4 -4 -4 -4 -4 -3 -3 -2 -2 -2 -1 -1 -------- Run | Yrd Mat Mat Min Mat Gar Mat Gar Fac Gar Fac Low Low Fac Ext Cet Arc Hub Gar Fac Upp Upp Zhi Pro Fac Was Fac Arm Lab Res Gar Res Qua Sec Acc Com Hostile Shots Fired 2739 | . 128 90 11 37 67 25 135 202 92 103 3 36 21 91 24 2 25 59 63 9 22 . . 260 . 77 122 . 46 81 111 187 103 134 373 Missed 763 | . 33 23 3 11 20 5 33 59 26 38 2 15 4 26 10 1 7 18 25 3 4 . . 82 . 28 42 . 14 25 31 46 13 32 84 Intercepted 1 | . . . . . . . . . . . . . . . . . . . . . . . . . . . . . 1 . . . . . . Hits 1976 | . 95 67 8 26 47 20 102 143 66 65 1 21 17 65 14 1 18 41 38 6 18 . . 178 . 49 80 . 32 56 80 141 90 102 289 Melee 11 | . . . . . . 1 . . . . . . . . . . . 1 . . . . . . . . 5 . . . 4 . . . . Projectile 1965 | . 95 67 8 26 47 19 102 143 66 65 1 21 17 65 14 1 18 40 38 6 18 . . 178 . 49 75 . 32 56 76 141 90 102 289 AOE 52 | . . . . . . . . . 10 . . . . . . . . . . . . . . 1 . . . . 1 . 1 . . . 39 Critical Strikes 92 | . 1 1 . 3 1 2 2 5 1 1 . 1 1 1 1 . 1 3 2 . . . . 6 . 2 6 . . 5 8 12 10 7 9 Actively Blocked 7 | . . . . . . . . . . . . . . . . . . . . . . . . . . . . . . . . 1 2 2 2 Part Disruptions 4 | . . . . . . . . . . . . . . . . . . . . . . . . . . . . . . . 1 1 1 . 1 Damage Taken 31938 | . 922 791 107 380 613 347 1368 1457 1099 952 12 356 224 769 318 48 381 784 837 84 200 . . 2481 . 914 785 . 487 895 1312 2043 1862 1170 7940 Core 3686 | . 121 141 . 50 34 . 61 248 147 58 . . 28 22 . . 17 57 23 . 14 . . 102 . 50 61 . 43 45 77 332 346 149 1460 Absorbed by Shields 7237 | . . . . . 28 . . 159 . 22 4 106 82 255 91 . . . . 30 84 . . 1120 . 188 414 . 147 515 737 828 397 607 1423 Reduced by Siege Mode 641 | . . . . . . . . . . . . . . . . . . . . . . . . 13 . 36 23 . . . 77 87 41 17 347 Redirected to Core 640 | . . . . . . . . . . . . . . . . . . . . . . . . . . . . . . . . 223 304 113 . Ignored by Resistances 1396 | . . . . . . . . . . . . . . . . . . . . . . . . . . . . . . . . 251 422 522 201 Regen/Repaired (Parts) 3686 | . . . . . . . . 101 . 98 . . . . . . . . 592 . . . . . 730 473 634 . . . . . . 478 580 Core Remaining (%) 71 | 100 51 . 64 . . . 73 . . . . 35 . . . . . 85 . . . . 96 . . . . 73 . 93 . . 47 . . Volleys Fired 1469 | 22 105 91 8 43 47 24 76 55 39 72 6 9 31 49 19 35 18 44 30 17 6 3 11 65 6 19 70 . 23 61 65 110 40 50 100 Largest 4 | 2 2 3 3 3 3 3 3 3 3 3 3 3 4 4 4 4 4 4 4 4 4 1 4 4 1 4 4 . 4 4 4 4 4 4 4 Hottest 384 | 70 70 69 69 145 117 117 117 138 144 117 75 75 165 136 106 161 157 227 214 214 214 5 167 237 80 175 250 . 264 189 205 374 374 374 384 Shots Fired 3833 | 44 210 273 24 127 107 68 184 113 57 167 18 25 80 168 74 109 43 123 84 32 15 3 16 205 7 52 172 . 66 140 182 274 94 154 323 Gun 3441 | 44 210 273 24 126 107 68 179 87 42 148 18 25 63 151 74 109 34 103 72 20 12 . 7 174 7 43 135 . 56 127 164 227 79 137 296 Cannon 224 | . . . . . . . . . . . . . 16 . . . 8 16 8 11 . . 9 24 . . 18 . 8 . 15 36 14 17 24 Launcher 33 | . . . . . . . . . . . . . . 10 . . . 4 2 1 3 . . 5 . 2 . . . . 2 3 . . 1 Special 135 | . . . . 1 . . 5 26 15 19 . . 1 7 . . 1 . 2 . . 3 . 2 . 7 19 . 2 13 1 8 1 . 2 Kinetic 2122 | 22 188 273 24 98 60 44 108 54 10 133 18 25 63 151 74 106 18 54 24 5 3 . 4 117 1 31 97 . 39 86 164 3 . . 25 Thermal 1545 | 22 22 . . 29 47 24 71 33 32 15 . . 16 . . 3 24 65 56 26 9 . 12 81 6 12 56 . 25 41 15 260 93 154 296 Explosive 32 | . . . . . . . . . . . . . . 10 . . . 4 2 1 3 . . 5 . 2 . . . . 2 3 . . . Electromagnetic . | . . . . . . . . . . . . . . . . . . . . . . . . . . . . . . . . . . . . Robot Hit Streak 31 | 9 14 16 9 10 20 22 13 11 26 12 7 8 24 22 22 17 10 28 18 7 12 5 1 14 2 12 22 . 28 20 17 25 13 20 31 Robot Miss Streak 13 | 2 10 3 1 4 5 5 13 4 2 5 1 1 2 5 2 4 2 2 6 1 1 . 2 11 2 2 3 . 1 3 4 3 3 4 6 Penetration Max 2 | . . . . . 1 1 1 1 1 . . . . . . . . . 1 . . . . 1 . 1 1 . 1 1 2 . . . 1 Secondary Targets 67 | . 3 3 . 3 4 . 3 . . 3 1 . 1 2 2 . . 1 2 1 . . . 4 . 1 8 . 1 3 5 4 5 5 2 Max Gunslinging Chain 2 | . 1 1 . 1 1 . 1 . . 1 1 . 1 1 1 . . 1 1 1 . . . 1 . 1 2 . 1 1 1 1 1 1 1 Shots Hit Robots 2428 | 26 124 174 18 77 59 48 104 75 50 126 13 18 54 120 62 76 27 73 47 13 10 3 2 115 3 35 102 . 38 84 113 175 63 100 201 Core Hits 1118 | 8 54 78 5 40 21 15 41 18 14 44 6 6 19 60 29 29 11 40 33 12 11 . 2 92 2 19 40 . 19 27 82 76 22 34 109 Critical Kills 30 | . . . . 1 . . . 1 . . . . . . . 1 . . . . . . 1 6 . 1 4 . 2 6 7 . . . . Critical Parts Destroyed 49 | . 1 2 . 1 . . . . . 1 . 1 . 1 . . . . . . . . . 7 . 3 6 . 5 6 11 . . . 4 Critical Strikes 162 | 3 2 2 . 2 . . 4 4 3 2 . 1 . 1 . 1 . 4 2 . . . 1 14 . 4 11 . 7 13 18 14 4 14 31 Burn 77 | 3 1 . . . . . 4 3 2 1 . . . . . . . 4 2 . . . . 1 . . . . . . . 14 4 14 24 Destroy 84 | . 1 2 . 2 . . . 1 . 1 . 1 . 1 . 1 . . . . . . 1 13 . 4 11 . 7 13 18 . . . 7 Sever 1 | . . . . . . . . . 1 . . . . . . . . . . . . . . . . . . . . . . . . . . Melee Attacks 106 | . . . . . . 3 . 4 30 34 10 3 8 . . . . . . . . . . . . . . . . . . 2 11 . 1 Kinetic 14 | . . . . . . . . . . . . . . . . . . . . . . . . . . . . . . . . 2 11 . 1 Impact . | . . . . . . . . . . . . . . . . . . . . . . . . . . . . . . . . . . . . Slashing 89 | . . . . . . . . 4 30 34 10 3 8 . . . . . . . . . . . . . . . . . . . . . . Piercing . | . . . . . . . . . . . . . . . . . . . . . . . . . . . . . . . . . . . . Sneak Attacks 20 | . . . . . . 3 . . . 16 . . . . . . . . . . . . . . . . . . . . . . 1 . . Combat Hostiles . | . . . . . . . . . . . . . . . . . . . . . . . . . . . . . . . . . . . . Follow-up Attacks . | . . . . . . . . . . . . . . . . . . . . . . . . . . . . . . . . . . . . Damage Inflicted 71996 | 297 1061 2198 279 1397 1365 850 2085 1123 1078 3012 215 335 1013 2763 1031 1513 1206 2374 1643 631 613 . 50 5701 121 1453 2859 . 1398 2593 5488 5757 2070 3306 13118 Guns 52457 | 297 1053 2169 269 1280 1365 845 2085 1123 488 1708 215 335 768 1850 1031 1513 555 1563 1008 298 183 . 50 3123 121 1046 2723 . 1247 2593 4689 4598 1631 3110 5525 Cannons 1497 | . . . . . . . . . . . . . 209 . . . . . 31 . . . . 319 . . 136 . 125 . 91 204 42 85 255 Explosions 15055 | . . . . . . . . . . . . . . 913 . . 651 811 590 333 430 . . 2259 . 407 . . . . 616 881 . . 7164 Melee 2363 | . . . . . . . . . 590 1290 . . 36 . . . . . . . . . . . . . . . . . . 50 397 . . Ramming 624 | . 8 29 10 117 . 5 . . . 14 . . . . . . . . 14 . . . . . . . . . 26 . 92 24 . 111 174 Kinetic 30456 | 70 866 2169 269 954 965 557 1289 660 126 1544 215 335 768 1850 1031 1413 336 667 283 52 35 . 50 2075 . 846 2033 . 836 2077 4689 171 397 . 828 Thermal 31109 | 227 187 . . 326 400 288 796 463 362 164 . . 209 . . 100 219 896 756 246 148 . . 1367 121 200 826 . 536 516 91 4681 1673 3195 12116 Explosive 7240 | . . . . . . . . . . . . . . 913 . . . 811 590 333 430 . . 2259 . 407 . . . . 616 881 . . . Electromagnetic 651 | . . . . . . . . . . . . . . . . . 651 . . . . . . . . . . . . . . . . . . Impact . | . . . . . . . . . . . . . . . . . . . . . . . . . . . . . . . . . . . . Slashing 1916 | . . . . . . . . . 590 1290 . . 36 . . . . . . . . . . . . . . . . . . . . . . Piercing . | . . . . . . . . . . . . . . . . . . . . . . . . . . . . . . . . . . . . Highest Corruption 20 | . . . . . . . 4 6 6 2 . 5 . 1 1 13 3 4 . . . . 20 3 3 3 8 8 1 1 5 8 . . . Average Corruption 2 | . . . . . . . 3 2 2 1 . 5 . 1 1 4 2 3 . . . . 14 2 3 3 4 8 1 1 4 5 . . . Corruption Purged 25 | . . . . . . . . 1 5 2 . . . . . 13 . 4 . . . . . . . . . . . . . . . . . Corruption Blocked . | . . . . . . . . . . . . . . . . . . . . . . . . . . . . . . . . . . . . Effects 156 | . . . . . . . 22 4 10 20 . . . 2 6 11 3 6 . . . . . 10 8 10 27 1 . 6 9 1 . . . Message Errors 43 | . . . . . . . 6 3 5 9 . . . . 1 1 1 . . . . . . 4 3 1 6 . . 2 1 . . . . Matter Fused 35 | . . . . . . . 10 . 2 3 . . . . 1 2 . 2 . . . . . 1 . 2 6 . . 1 5 . . . . Heat Flow Errors 13 | . . . . . . . . 1 1 2 . . . . 1 1 2 . . . . . . . 1 3 1 . . . . . . . . Energy Discharges 18 | . . . . . . . 3 . 1 1 . . . . . . . 1 . . . . . 1 1 1 6 . . 2 1 . . . . Parts Rejected 1 | . . . . . . . . . . . . . . . 1 . . . . . . . . . . . . . . . . . . . . Parts Fused 1 | . . . . . . . . . . . . . . . . . . . . . . . . . . . . 1 . . . . . . . Data Loss (minor) 23 | . . . . . . . 2 . 1 3 . . . 1 . 4 . 2 . . . . . 2 1 2 3 . . . 1 1 . . . Data Loss (major) 4 | . . . . . . . . . . . . . . 1 . 1 . . . . . . . . 1 . 1 . . . . . . . . Misfires 7 | . . . . . . . . . . 1 . . . . . 1 . 1 . . . . . . 1 1 2 . . . . . . . . Alerts 4 | . . . . . . . 1 . . . . . . . 1 . . . . . . . . . . . 2 . . . . . . . . Weapon Failures 7 | . . . . . . . . . . 1 . . . . 1 1 . . . . . . . 2 . . . . . 1 1 . . . . Overload Shots 1 | . . . . . . . . . . . . . . . . . . 1 . . . . . . . . . . . . . . . . . Overflow Damage 1558 | . . . . . . . . . . 401 . . 29 2 . . 17 . 138 3 . . . 214 . . . . . . 65 4 . 6 679 Projectiles 65 | . . . . . . . . . . . . . 29 . . . . . . . . . . 5 . . . . . . . 3 . . 28 Explosions 1037 | . . . . . . . . . . . . . . 2 . . 17 . 138 3 . . . 209 . . . . . . 16 1 . . 651 Melee 456 | . . . . . . . . . . 401 . . . . . . . . . . . . . . . . . . . . 49 . . 6 . Knockbacks 6 | . . . . . . . . . . 1 . . . . . . . . 1 . . . . . . . . . . . 2 . . 2 . Impact 6 | . . . . . . . . . . 1 . . . . . . . . 1 . . . . . . . . . . . 2 . . 2 . Kinetic . | . . . . . . . . . . . . . . . . . . . . . . . . . . . . . . . . . . . . Secondary . | . . . . . . . . . . . . . . . . . . . . . . . . . . . . . . . . . . . . Self-Inflicted Damage 298 | . . . . . . . . . . . . . . . . . 93 . 64 . . . . 141 . . . . . . . . . . . Shots 4 | . . . . . . . . . . . . . . . . . 1 . 1 . . . . 2 . . . . . . . . . . . Rammed 40 | . . 2 1 11 . 1 . . . 1 . . . . . . . . 1 . . . . . . . . . 3 . 3 4 . 6 7 Targets Rammed 48 | . 2 2 1 13 . 1 . . . 1 . . . . . . . . 1 . . . . . . . . . 3 . 6 4 . 6 8 Kicked 2 | . 2 . . . . . . . . . . . . . . . . . . . . . . . . . . . . . . . . . . Crushed 6 | . . . . 2 . . . . . . . . . . . . . . . . . . . . . . . . . . 3 . . . 1 Highest Temperature 374 | 190 240 114 252 160 117 257 238 374 114 131 30 90 114 125 137 156 239 175 220 96 96 . 151 280 133 128 98 . 197 123 54 330 370 180 343 Average Temperature 56 | 75 33 34 124 47 41 75 49 78 46 15 7 34 39 45 56 28 83 30 57 41 47 . 67 86 80 26 23 . 49 45 15 95 111 62 84 Received Heat Transfer 3763 | . 318 345 60 216 216 99 342 362 162 123 6 57 30 125 13 9 9 63 27 6 . . . 288 . 112 39 . 73 131 103 189 151 4 85 Effects 5 | . . . . . . . . . . . . . . . . . . . . . . . . 1 . . . . . . . 2 1 . 1 Shutdowns 3 | . . . . . . . . . . . . . . . . . . . . . . . . . . . . . . . . 2 . . 1 Energy Bleed 1 | . . . . . . . . . . . . . . . . . . . . . . . . . . . . . . . . . 1 . . Interference 1 | . . . . . . . . . . . . . . . . . . . . . . . . 1 . . . . . . . . . . . Siege Activations 42 | . . . . . . . . . . . . . . . . . . . . . . . . 1 . 1 4 . . 3 7 9 5 4 8 Total Turns 633 | . . . . . . . . . . . . . . . . . . . . . . . . 32 . 16 54 . . 31 127 120 80 56 117 Longest Duration 36 | . . . . . . . . . . . . . . . . . . . . . . . . 32 . 16 27 . . 15 32 28 28 26 36 Martial Activations . | . . . . . . . . . . . . . . . . . . . . . . . . . . . . . . . . . . . . Shielding Activations . | . . . . . . . . . . . . . . . . . . . . . . . . . . . . . . . . . . . . Robots Disrupted . | . . . . . . . . . . . . . . . . . . . . . . . . . . . . . . . . . . . . Combat Hostiles . | . . . . . . . . . . . . . . . . . . . . . . . . . . . . . . . . . . . . Robots Corrupted 2 | . . . . . . . . . . . . . . . . . . . . . . . . . . . . . . . 1 . . 1 . Combat Hostiles . | . . . . . . . . . . . . . . . . . . . . . . . . . . . . . . . . . . . . Parts Fried 5 | . . . . . . . . . . . . . . . . . 2 . . . . . . . . . . . . . 2 . . 1 . Impact Corruptions 5 | . . . . . . . . . . . . . . . . . . . . . . . . . . . . . 1 . 3 . . 1 . Robots Melted 9 | . . . . . . . . . . . . . . . . . . . . . . . . . . . . . . . . . 1 5 3 Combat Hostiles 9 | . . . . . . . . . . . . . . . . . . . . . . . . . . . . . . . . . 1 5 3 Parts Melted 129 | 4 . . . 5 . . 4 1 1 . . . 1 . . 1 . 5 3 2 1 . . 6 . 2 1 . 1 1 1 9 8 34 38 Heat Transferred 40815 | 888 629 . . 592 703 518 1665 1073 868 407 . . 300 . . 225 370 1752 1600 459 298 . . 2250 185 296 927 . 518 666 . 6875 2376 5200 9175 Parts Sabotaged . | . . . . . . . . . . . . . . . . . . . . . . . . . . . . . . . . . . . . Parts Stolen . | . . . . . . . . . . . . . . . . . . . . . . . . . . . . . . . . . . . . Parts Stripped 54 | . . . . . . . . . . . . . . . . . . . . . . . . . . . . . . . . 18 16 . 20 Power Chain Reactions . | . . . . . . . . . . . . . . . . . . . . . . . . . . . . . . . . . . . . Alert | -11 -10 -9 -9 -8 -8 -8 -8 -7 -7 -7 -7 -7 -6 -6 -6 -6 -6 -6 -5 -5 -5 -5 -4 -4 -4 -4 -4 -4 -3 -3 -2 -2 -2 -1 -1 ------- Run | Yrd Mat Mat Min Mat Gar Mat Gar Fac Gar Fac Low Low Fac Ext Cet Arc Hub Gar Fac Upp Upp Zhi Pro Fac Was Fac Arm Lab Res Gar Res Qua Sec Acc Com Maximum Alert Level 5 | . . 2 1 1 2 1 3 2 1 . . . . 1 1 1 3 4 3 . . . . 3 1 3 3 . . 2 3 2 2 1 5 Low Security (%) 45 | 100 100 40 78 99 17 53 17 47 58 100 . . 100 75 60 99 61 . . . . . . 75 63 34 . . 100 28 . . . 21 7 Level 1 23 | . . 39 21 . 23 46 17 46 41 . . . . 25 39 . 6 . . . . . . 18 36 13 32 . . 26 43 19 76 78 32 Level 2 22 | . . 19 . . 59 . 33 6 . . . . . . . . 15 19 78 . . . . . . 26 67 . . 44 20 80 23 . 45 Level 3 5 | . . . . . . . 31 . . . . . . . . . 15 35 21 . . . . 5 . 25 . . . . 36 . . . . Level 4 1 | . . . . . . . . . . . . . . . . . . 45 . . . . . . . . . . . . . . . . . Level 5 . | . . . . . . . . . . . . . . . . . . . . . . . . . . . . . . . . . . . 14 High Security . | . . . . . . . . . . . . . . . . . . . . . . . . . . . . . . . . . . . . Max Security . | . . . . . . . . . . . . . . . . . . . . . . . . . . . . . . . . . . . . Peak Influence 2300 | 15 120 521 246 206 587 378 835 438 312 196 . . 86 321 262 207 778 1226 760 . . . . 932 318 1096 700 . 75 698 936 698 510 317 2300 Initial 643 | . . 20 196 16 . 286 . 438 99 111 . . . 37 169 66 13 501 643 . . . . . 318 25 532 . . 51 392 515 378 273 156 Average 311 | 2 54 229 148 45 377 196 497 226 196 54 . . 10 153 186 136 275 975 663 . . . . 156 169 411 517 . 8 380 550 472 388 247 670 Influence Increases 19734 | 30 553 952 70 468 587 343 935 330 283 515 40 30 182 761 312 281 1273 725 529 150 140 . 10 1324 12 1524 1025 . 186 707 964 883 435 418 2757 Destroy 0b10 Robot/C 8380 | . 320 600 60 200 300 180 500 200 100 260 40 20 80 460 160 80 340 400 260 140 120 . . 480 . 420 500 . 80 280 420 480 220 240 440 Destroy 0b10 Robot/NC 1050 | 30 45 75 . 85 . 10 5 30 10 100 . . 15 30 10 45 50 . 20 . . . 10 110 . 70 20 . 40 . 95 30 5 30 80 Destroy Leader 1574 | . 90 138 10 34 20 60 40 52 10 64 . 10 22 42 . . 72 40 60 10 20 . . 72 . 108 84 . 38 40 110 82 50 82 114 Allied During Kill 1659 | . . . . . 11 7 25 27 21 . . . . 135 131 125 452 . . . . . . . . 547 178 . . . . . . . . Successful Hack 530 | . 8 15 . 27 21 24 10 2 . 31 . . 51 25 . . 24 . 55 . . . . 35 . . 70 . . . . 33 52 21 26 Select Force Hacks 180 | . 60 90 . 30 . . . . . . . . . . . . . . . . . . . . . . . . . . . . . . . Disable Machine 1185 | . . . . 15 . 30 . . . 30 . . . . . 30 135 45 15 . . . . 390 . 75 90 . . 60 30 90 75 . 75 Anti-Garrison Action 1200 | . . . . . 200 . 300 . 100 . . . . . . . . 200 . . . . . . . 150 . . . 200 . . . . 50 Destroy Structure 3511 | . . 4 . 2 35 2 55 4 42 15 . . 14 24 11 1 140 40 74 . . . . 222 12 154 68 . 28 127 309 153 33 45 1897 Partial Spotted 15 | . . . . . . . . . . . . . . . . . . . . . . . . . . . . . . . . . . . 15 Lose Combat Pursuer 450 | . 30 30 . 75 . 30 . 15 . 15 . . . 45 . . 60 . 45 . . . . 15 . . 15 . . . . 15 . . 60 Influence Decreases 17611 | 30 503 497 531 512 . 930 100 1023 213 575 192 30 104 536 448 409 596 215 1127 667 251 . 10 414 886 472 1456 657 117 78 746 1127 650 630 879 Entered New Map 5729 | . . 30 309 28 . 301 . 397 43 101 57 . . 41 134 101 26 215 583 233 22 . . . 592 11 556 657 . 18 306 401 294 184 89 Time Decay 8988 | 30 469 467 222 324 . 309 . 486 . 434 125 30 104 445 214 278 190 . 494 434 219 . 10 314 294 281 490 . 117 . 410 556 356 416 470 Lost Part 804 | . 34 . . 10 . . 50 50 90 30 10 . . 30 20 10 . . 30 . 10 . . 90 . . . . . . 30 20 . 10 280 Lost Ally 1040 | . . . . . . 20 50 90 80 10 . . . 20 80 20 80 . 20 . . . . 10 . 180 260 . . 60 . . . 20 40 Purge Threat 1050 | . . . . 150 . 300 . . . . . . . . . . 300 . . . . . . . . . 150 . . . . 150 . . . Squads Dispatched 87 | . 5 5 1 1 . 1 . 9 . 5 . . 2 2 . . 5 . 3 . . . . 6 . 7 8 . 5 . 4 7 1 4 6 Investigation 20 | . 3 3 1 1 . . . . . . . . . 2 . . 1 . . . . . . 1 . . 2 . 2 . . 1 . 1 2 Extermination 22 | . . . . . . . . 2 . 2 . . 1 . . . 1 . 1 . . . . 1 . 1 2 . . . 2 3 1 2 3 Reinforcement 26 | . 2 1 . . . 1 . 2 . 2 . . 1 . . . 2 . 1 . . . . 2 . 1 4 . 3 . 1 2 . 1 . Assault 12 | . . 1 . . . . . . . . . . . . . . 1 . 1 . . . . 2 . 4 . . . . 1 1 . . 1 Garrison 7 | . . . . . . . . 5 . 1 . . . . . . . . . . . . . . . 1 . . . . . . . . . Intercept . | . . . . . . . . . . . . . . . . . . . . . . . . . . . . . . . . . . . . Searches Triggered . | . . . . . . . . . . . . . . . . . . . . . . . . . . . . . . . . . . . . Construction Impeded 3 | . . . . . . . . . . 1 . . . . . . 1 . . . . . . 1 . . . . . . . . . . . Haulers Reinforced 3 | . . . . . . . . . . . . . 1 . . . . . . . . . . 1 . . . . 1 . . . . . . Active Scanning Responses . | . . . . . . . . . . . . . . . . . . . . . . . . . . . . . . . . . . . . Cargo Convoy Interrupts 1 | . . . . . . . . . . 1 . . . . . . . . . . . . . . . . . . . . . . . . . Alert ID Control Effect 15 | . . . . . . . . 3 7 . . . . . . . . . . . . . . . . . 4 . . 1 . . . . . Stealth | -11 -10 -9 -9 -8 -8 -8 -8 -7 -7 -7 -7 -7 -6 -6 -6 -6 -6 -6 -5 -5 -5 -5 -4 -4 -4 -4 -4 -4 -3 -3 -2 -2 -2 -1 -1 --------- Run | Yrd Mat Mat Min Mat Gar Mat Gar Fac Gar Fac Low Low Fac Ext Cet Arc Hub Gar Fac Upp Upp Zhi Pro Fac Was Fac Arm Lab Res Gar Res Qua Sec Acc Com Distress Signals 46 | . 2 2 . 1 . 1 . 1 . 2 . . 1 1 2 . 7 . . . . . . 2 . 1 4 . 10 . 1 2 1 4 1 Communications Jammed 332 | . . . . . . . . . . . . . . . . . 4 . 3 . . . 1 90 . 45 116 . 5 . 29 11 . 8 20 Distress Signals 318 | . . . . . . . . . . . . . . . . . . . . . . . . 90 . 40 116 . 5 . 28 11 . 8 20 Times Spotted 626 | . 29 39 3 23 16 15 24 27 28 31 2 1 5 26 9 25 19 20 15 6 5 . 1 34 1 25 34 . 13 19 28 29 13 17 44 Peak Tracking Total 16 | . 5 5 3 8 5 4 6 5 4 5 2 1 2 6 5 1 7 8 5 3 5 . 1 5 1 9 7 . 6 3 5 4 5 5 16 Tactical Retreats 20 | . 1 2 . 3 . 1 . 1 . 1 . . . 2 . . 3 . 1 . . . . 1 . . 1 . . . . 1 . . 2 Traps | -11 -10 -9 -9 -8 -8 -8 -8 -7 -7 -7 -7 -7 -6 -6 -6 -6 -6 -6 -5 -5 -5 -5 -4 -4 -4 -4 -4 -4 -3 -3 -2 -2 -2 -1 -1 ------- Run | Yrd Mat Mat Min Mat Gar Mat Gar Fac Gar Fac Low Low Fac Ext Cet Arc Hub Gar Fac Upp Upp Zhi Pro Fac Was Fac Arm Lab Res Gar Res Qua Sec Acc Com Traps Triggered 44 | . 1 . . . 4 . 1 1 4 5 . . 1 7 . . 1 6 2 . . . . 1 . 1 . . 2 . . . 1 3 3 Indirectly . | . . . . . . . . . . . . . . . . . . . . . . . . . . . . . . . . . . . . Trap Hack Attempts . | . . . . . . . . . . . . . . . . . . . . . . . . . . . . . . . . . . . . Triggered . | . . . . . . . . . . . . . . . . . . . . . . . . . . . . . . . . . . . . Disarmed . | . . . . . . . . . . . . . . . . . . . . . . . . . . . . . . . . . . . . Reprogrammed . | . . . . . . . . . . . . . . . . . . . . . . . . . . . . . . . . . . . . Reused . | . . . . . . . . . . . . . . . . . . . . . . . . . . . . . . . . . . . . Traps Extracted . | . . . . . . . . . . . . . . . . . . . . . . . . . . . . . . . . . . . . Installed 1 | . . . 1 . . . . . . . . . . . . . . . . . . . . . . . . . . . . . . . . Triggered . | . . . . . . . . . . . . . . . . . . . . . . . . . . . . . . . . . . . . Machines | -11 -10 -9 -9 -8 -8 -8 -8 -7 -7 -7 -7 -7 -6 -6 -6 -6 -6 -6 -5 -5 -5 -5 -4 -4 -4 -4 -4 -4 -3 -3 -2 -2 -2 -1 -1 ---------- Run | Yrd Mat Mat Min Mat Gar Mat Gar Fac Gar Fac Low Low Fac Ext Cet Arc Hub Gar Fac Upp Upp Zhi Pro Fac Was Fac Arm Lab Res Gar Res Qua Sec Acc Com Machines Disabled 99 | . . . . 1 3 2 2 . 2 2 1 . . . . 2 9 6 1 . . . . 26 . 10 6 . . 6 2 6 5 . 7 Max in Single Turn 9 | . . . . 1 1 1 1 . 1 1 1 . . . . 1 9 1 1 . . . . 7 . 3 1 . . 1 1 1 1 . 2 Garrison Access 14 | . . . . . . . . 2 . 2 . . 1 . . . . . 1 . . . . 1 . 1 . . 1 . 2 1 1 1 . Garrison Relay 12 | . . . . . 3 . 2 . 2 . . . . . . . . 3 . . . . . . . . . . . 2 . . . . . Phase Generator 1 | . . . . . . . . . . . . . . . . . . . . . . . . . . . . . . . . . . . 1 Network Hub 1 | . . . . . . . . . . . . . . . . . 1 . . . . . . . . . . . . . . . . . . Machines Repaired . | . . . . . . . . . . . . . . . . . . . . . . . . . . . . . . . . . . . . Machines Dismantled . | . . . . . . . . . . . . . . . . . . . . . . . . . . . . . . . . . . . . Machines Sabotaged . | . . . . . . . . . . . . . . . . . . . . . . . . . . . . . . . . . . . . Overloaded Fab Kills . | . . . . . . . . . . . . . . . . . . . . . . . . . . . . . . . . . . . . Hacking | -11 -10 -9 -9 -8 -8 -8 -8 -7 -7 -7 -7 -7 -6 -6 -6 -6 -6 -6 -5 -5 -5 -5 -4 -4 -4 -4 -4 -4 -3 -3 -2 -2 -2 -1 -1 --------- Run | Yrd Mat Mat Min Mat Gar Mat Gar Fac Gar Fac Low Low Fac Ext Cet Arc Hub Gar Fac Upp Upp Zhi Pro Fac Was Fac Arm Lab Res Gar Res Qua Sec Acc Com Machines Accessed 119 | . 5 7 2 7 2 4 2 7 1 8 . . 7 8 1 . 2 1 5 . 3 4 . 3 . 2 10 . 2 . 7 5 5 4 5 Terminals 65 | . 3 3 1 5 2 3 2 2 1 2 . . 5 8 1 . 1 1 1 . . . . 1 . 1 4 . 1 . 4 3 2 3 5 Fabricators 5 | . . . . . . . . . . 2 . . . . . . . . . . . . . . . . 3 . . . . . . . . Repair Stations 6 | . . . . . . . . 1 . 2 . . . . . . . . 1 . . . . 1 . . 1 . . . . . . . . Recycling Units 12 | . 2 2 . 1 . . . 1 . . . . . . . . . . 2 . . . . . . 1 2 . . . 1 . . . . Scanalyzers 6 | . . 2 . . . . . . . . . . 1 . . . . . . . . . . . . . . . . . . 1 2 . . Garrison Access 17 | . . . . 1 . 1 . 3 . 2 . . 1 . . . 1 . 1 . . . . 1 . . . . 1 . 2 1 1 1 . Total Hacks 341 | . 8 28 3 22 3 16 6 17 2 26 . . 17 16 1 . 8 3 21 . 6 16 . 12 . 7 37 . 3 . 13 14 14 8 14 Successful 178 | . 4 20 2 11 2 14 1 7 . 11 . . 8 4 1 . 4 . 11 . 6 16 . 5 . 4 24 . 1 . 4 4 7 5 2 Failed 163 | . 4 8 1 11 1 2 5 10 2 15 . . 9 12 . . 4 3 10 . . . . 7 . 3 13 . 2 . 9 10 7 3 12 Catastrophic 36 | . 1 . 1 . 1 . . 1 1 1 . . 3 5 . . . 3 2 . . . . 2 . 1 2 . . . 5 2 . . 5 Database Lockouts . | . . . . . . . . . . . . . . . . . . . . . . . . . . . . . . . . . . . . Manual 158 | . 8 15 2 12 . 7 5 4 . 11 . . 5 . 1 . 7 . 14 . . . . 11 . 5 18 . 2 . 8 9 9 . 5 Terminals 184 | . 6 13 2 18 3 15 6 5 2 6 . . 10 16 1 . 5 3 2 . . . . 9 . 1 15 . 2 . 8 8 8 6 14 Fabricators 19 | . . . . . . . . . . 10 . . . . . . . . . . . . . . . . 9 . . . . . . . . Repair Stations 23 | . . . . . . . . 6 . 7 . . . . . . . . 3 . . . . 2 . . 5 . . . . . . . . Recycling Units 35 | . 2 2 . 2 . . . 2 . . . . . . . . . . 11 . . . . . . 6 8 . . . 2 . . . . Scanalyzers 27 | . . 13 . . . . . . . . . . 5 . . . . . . . . . . . . . . . . . . 5 4 . . Garrison Access 30 | . . . . 2 . 1 . 4 . 3 . . 2 . . . 3 . 5 . . . . 1 . . . . 1 . 3 1 2 2 . Terminal Hacks 66 | . . 1 2 5 2 9 1 . . 2 . . 2 4 1 . 2 . . . 6 16 . . . . 5 . . . 1 2 1 3 1 Record 8 | . . . . . . . . . . . . . . . . . . . . . 4 4 . . . . . . . . . . . . . Part Schematic 5 | . . . . . . . . . . . . . . 1 . . . . . . . 4 . . . . . . . . . . . . . Robot Analysis 6 | . . . 1 . . . . . . . . . . . . . . . . . . 4 . . . . 1 . . . . . . . . Prototype ID Bank 5 | . . . . . . 1 . . . . . . . . . . . . . . . 4 . . . . . . . . . . . . . Open Door 14 | . . . 1 . 1 . . . . . . . 1 3 1 . . . . . 2 . . . . . 1 . . . . 1 . 3 . Level Access Points 1 | . . . . . . 1 . . . . . . . . . . . . . . . . . . . . . . . . . . . . . Branch Access Points 2 | . . . . 1 . 1 . . . . . . . . . . . . . . . . . . . . . . . . . . . . . Emergency Access Points 1 | . . . . . . . 1 . . . . . . . . . . . . . . . . . . . . . . . . . . . . Terminal Index 7 | . . . . 1 . 1 . . . 1 . . . . . . . . . . . . . . . . 1 . . . 1 1 . . 1 Alert Level 1 | . . . . 1 . . . . . . . . . . . . . . . . . . . . . . . . . . . . . . . Unreport Threat 4 | . . . . 1 . 1 . . . . . . . . . . 2 . . . . . . . . . . . . . . . . . . Locate Traps 3 | . . . . . . 2 . . . . . . . . . . . . . . . . . . . . 1 . . . . . . . . Maintenance Status 2 | . . . . . . 1 . . . . . . . . . . . . . . . . . . . . . . . . . . 1 . . Patrol Status 3 | . . 1 . 1 . . . . . . . . 1 . . . . . . . . . . . . . . . . . . . . . . Hauler Manifests 1 | . . . . . . . . . . 1 . . . . . . . . . . . . . . . . . . . . . . . . . Registered Components 1 | . . . . . . 1 . . . . . . . . . . . . . . . . . . . . . . . . . . . . . Zone Layout 1 | . . . . . . . . . . . . . . . . . . . . . . . . . . . 1 . . . . . . . . Garrison Registry 1 | . . . . . 1 . . . . . . . . . . . . . . . . . . . . . . . . . . . . . . Fabricator Hacks 5 | . . . . . . . . . . 2 . . . . . . . . . . . . . . . . 3 . . . . . . . . Network Status 2 | . . . . . . . . . . 1 . . . . . . . . . . . . . . . . 1 . . . . . . . . Load Schematic 1 | . . . . . . . . . . . . . . . . . . . . . . . . . . . 1 . . . . . . . . Build 2 | . . . . . . . . . . 1 . . . . . . . . . . . . . . . . 1 . . . . . . . . Repair Station Hacks 8 | . . . . . . . . 2 . 2 . . . . . . . . 2 . . . . . . . 2 . . . . . . . . Scan Component 4 | . . . . . . . . 1 . 1 . . . . . . . . 1 . . . . . . . 1 . . . . . . . . Repair 4 | . . . . . . . . 1 . 1 . . . . . . . . 1 . . . . . . . 1 . . . . . . . . Recycling Unit Hacks 3 | . . . . . . . . . . . . . . . . . . . 1 . . . . . . 1 1 . . . . . . . . Retrieve Components 3 | . . . . . . . . . . . . . . . . . . . 1 . . . . . . 1 1 . . . . . . . . Scanalyzer 12 | . . 10 . . . . . . . . . . 2 . . . . . . . . . . . . . . . . . . . . . . Insert Component 3 | . . 3 . . . . . . . . . . . . . . . . . . . . . . . . . . . . . . . . . Analyze 5 | . . 5 . . . . . . . . . . . . . . . . . . . . . . . . . . . . . . . . . Retrieve Study 4 | . . 2 . . . . . . . . . . 2 . . . . . . . . . . . . . . . . . . . . . . Garrison Access Hacks 23 | . . . . 1 . 1 . 4 . 3 . . 2 . . . 1 . 1 . . . . 1 . . . . 1 . 3 1 2 2 . Unlock Access 6 | . . . . 1 . 1 . 1 . . . . . . . . 1 . . . . . . 1 . . . . 1 . . . . . . Seal Access 11 | . . . . . . . . 2 . 2 . . 1 . . . . . 1 . . . . . . . . . . . 2 1 1 1 . Coupler Status 6 | . . . . . . . . 1 . 1 . . 1 . . . . . . . . . . . . . . . . . 1 . 1 1 . Unauthorized Hacks 61 | . 4 9 . 5 . 4 . 1 . 2 . . 2 . . . 1 . 7 . . . . 4 . 3 13 . . . . 1 4 . 1 Terminals 32 | . 2 6 . 4 . 4 . . . . . . 2 . . . . . 1 . . . . 3 . . 5 . . . . 1 3 . 1 Track 4 | . . . . . . . . . . . . . . . . . . . . . . . . 1 . . 1 . . . . 1 . . 1 Assimilate 1 | . . . . . . . . . . . . . 1 . . . . . . . . . . . . . . . . . . . . . . Botnet 13 | . . 2 . 1 . 2 . . . . . . 1 . . . . . 1 . . . . 1 . . 3 . . . . . 2 . . Operators 6 | . . 1 . 1 . 1 . . . . . . . . . . . . . . . . . 1 . . 1 . . . . . 1 . . Skim 8 | . 2 3 . 2 . 1 . . . . . . . . . . . . . . . . . . . . . . . . . . . . . Fabricators 4 | . . . . . . . . . . 1 . . . . . . . . . . . . . . . . 3 . . . . . . . . Prioritize 1 | . . . . . . . . . . . . . . . . . . . . . . . . . . . 1 . . . . . . . . Liberate 3 | . . . . . . . . . . 1 . . . . . . . . . . . . . . . . 2 . . . . . . . . Repair Stations 5 | . . . . . . . . 1 . 1 . . . . . . . . 1 . . . . 1 . . 1 . . . . . . . . Mechanics 5 | . . . . . . . . 1 . 1 . . . . . . . . 1 . . . . 1 . . 1 . . . . . . . . Recycling Units 16 | . 2 2 . 1 . . . . . . . . . . . . . . 4 . . . . . . 3 4 . . . . . . . . Reject 3 | . . . . . . . . . . . . . . . . . . . 1 . . . . . . 1 1 . . . . . . . . Recyclers 3 | . . . . . . . . . . . . . . . . . . . 1 . . . . . . 1 1 . . . . . . . . Mask 5 | . . . . . . . . . . . . . . . . . . . 2 . . . . . . 1 2 . . . . . . . . Tunnel 5 | . 2 2 . 1 . . . . . . . . . . . . . . . . . . . . . . . . . . . . . . . Scanalyzers 2 | . . 1 . . . . . . . . . . . . . . . . . . . . . . . . . . . . . . 1 . . Researchers 1 | . . . . . . . . . . . . . . . . . . . . . . . . . . . . . . . . . 1 . . Extract 1 | . . 1 . . . . . . . . . . . . . . . . . . . . . . . . . . . . . . . . . Garrison Access 2 | . . . . . . . . . . . . . . . . . 1 . 1 . . . . . . . . . . . . . . . . Watchers 2 | . . . . . . . . . . . . . . . . . 1 . 1 . . . . . . . . . . . . . . . . Data Cores Recovered 2 | . . . . 1 . . . . . . . . . . . . . . . . . . . . . 1 . . . . . . . . . Used 1 | . . . . . . . . . . . . . . . . . . . . . . . . . . 1 . . . . . . . . . Hacking Detections 78 | . 2 5 1 6 1 3 2 4 1 6 . . 6 7 . . 2 1 3 . . . . 1 . 1 7 . 1 . 5 3 3 2 5 Full Trace Events 12 | . . . 1 . 1 . 2 . . . . . . 2 . . 1 1 . . . . . 1 . . 1 . . . . 1 . . 1 Feedback Events . | . . . . . . . . . . . . . . . . . . . . . . . . . . . . . . . . . . . . Feedback Blocked . | . . . . . . . . . . . . . . . . . . . . . . . . . . . . . . . . . . . . Robot Schematics Acquired . | . . . . . . . . . . . . . . . . . . . . . . . . . . . . . . . . . . . . Robots Built . | . . . . . . . . . . . . . . . . . . . . . . . . . . . . . . . . . . . . Authchips . | . . . . . . . . . . . . . . . . . . . . . . . . . . . . . . . . . . . . Time . | . . . . . . . . . . . . . . . . . . . . . . . . . . . . . . . . . . . . Total Robot Build Rating . | . . . . . . . . . . . . . . . . . . . . . . . . . . . . . . . . . . . . Part Schematics Acquired 16 | . . 5 . . . . . . . . . . . 1 . . . . . . . 4 . . . . . . . . . 6 . . . Parts Built 3 | . . . . . . . . . . 2 . . . . . . . . . . . . . . . . 1 . . . . . . . . Authchips . | . . . . . . . . . . . . . . . . . . . . . . . . . . . . . . . . . . . . Time 137 | . . . . . . . . . . 95 . . . . . . . . . . . . . . . . 42 . . . . . . . . Total Part Build Rating 16 | . . . . . . . . . . 10 . . . . . . . . . . . . . . . . 6 . . . . . . . . Part Studies Acquired 4 | . . 2 . . . . . . . . . . 2 . . . . . . . . . . . . . . . . . . . . . . Parts Repaired 4 | . . . . . . . . 1 . 1 . . . . . . . . 1 . . . . . . . 1 . . . . . . . . Time 311 | . . . . . . . . 51 . 44 . . . . . . . . 108 . . . . . . . 108 . . . . . . . . Parts Recycled . | . . . . . . . . . . . . . . . . . . . . . . . . . . . . . . . . . . . . Recycled Matter . | . . . . . . . . . . . . . . . . . . . . . . . . . . . . . . . . . . . . Retrieved Matter . | . . . . . . . . . . . . . . . . . . . . . . . . . . . . . . . . . . . . Retrieved Components 5 | . . . . . . . . . . . . . . . . . . . 1 . . . . . . 1 3 . . . . . . . . Parts Scanalyzed 3 | . . 3 . . . . . . . . . . . . . . . . . . . . . . . . . . . . . . . . . Part Schematics Acquired 3 | . . 3 . . . . . . . . . . . . . . . . . . . . . . . . . . . . . . . . . Parts Damaged 1 | . . 1 . . . . . . . . . . . . . . . . . . . . . . . . . . . . . . . . . Bothacking | -11 -10 -9 -9 -8 -8 -8 -8 -7 -7 -7 -7 -7 -6 -6 -6 -6 -6 -6 -5 -5 -5 -5 -4 -4 -4 -4 -4 -4 -3 -3 -2 -2 -2 -1 -1 ------------ Run | Yrd Mat Mat Min Mat Gar Mat Gar Fac Gar Fac Low Low Fac Ext Cet Arc Hub Gar Fac Upp Upp Zhi Pro Fac Was Fac Arm Lab Res Gar Res Qua Sec Acc Com Used RIF Installer 4 | . . . . . 1 . 1 . 1 . . . . . . . . 1 . . . . . . . . . . . . . . . . . Zone Cloak 1 | . . . . . . . . . 1 . . . . . . . . . . . . . . . . . . . . . . . . . . Patrol Navigation 1 | . . . . . . . . . . . . . . . . . . 1 . . . . . . . . . . . . . . . . . Alert ID Control 1 | . . . . . . . 1 . . . . . . . . . . . . . . . . . . . . . . . . . . . . Robots Hacked 66 | . . . . . . 1 . 12 10 7 . . 1 1 . . 1 . 1 . . 3 . 2 . 5 4 . 2 8 1 5 1 . 1 Non-combat 24 | . . . . . . 1 . 3 . 5 . . 1 . . . . . . . . . . 1 . 4 2 . 2 . 1 3 . . 1 Combat 42 | . . . . . . . . 9 10 2 . . . 1 . . 1 . 1 . . 3 . 1 . 1 2 . . 8 . 2 1 . . Robot Hacks Applied 74 | . . . . . . 3 . 13 10 11 . . 1 1 . . 1 . 2 . . 3 . 2 . 5 4 . 2 8 1 5 1 . 1 parse_system 6 | . . . . . . . . . . . . . . 1 . . . . . . . 3 . . . . 1 . . . . . . . 1 no_distress 1 | . . . . . . . . . . . . . . . . . . . . . . . . . . 1 . . . . . . . . . find_chute 1 | . . . . . . . . . . . . . 1 . . . . . . . . . . . . . . . . . . . . . . ignore_repairs 3 | . . . . . . . . . . . . . . . . . . . . . . . . . . 1 . . 1 . . 1 . . . find_fabricator 1 | . . . . . . . . 1 . . . . . . . . . . . . . . . . . . . . . . . . . . . drop_inventory 3 | . . . . . . . . 2 . 1 . . . . . . . . . . . . . . . . . . . . . . . . . locate_stockpiles 1 | . . . . . . . . . . 1 . . . . . . . . . . . . . . . . . . . . . . . . . find_recycling 1 | . . . . . . . . . . 1 . . . . . . . . . . . . . . . . . . . . . . . . . ignore_parts 1 | . . . . . . . . . . . . . . . . . . . . . . . . . . . . . . . . 1 . . . find_station 1 | . . . . . . . . . . . . . . . . . . . . . . . . . . 1 . . . . . . . . . purge_threat 3 | . . . . . . 1 . . . . . . . . . . . . . . . . . . . . 1 . . . . 1 . . . clear_recycling 1 | . . . . . . 1 . . . . . . . . . . . . . . . . . . . . . . . . . . . . . map_route 9 | . . . . . . . . . . 4 . . . . . . . . . . . . . 1 . 1 1 . 1 . 1 . . . . disable_scanner 1 | . . . . . . . . . . . . . . . . . . . . . . . . . . . . . . . . 1 . . . locate_prototypes 2 | . . . . . . . . . . . . . . . . . . . . . . . . . . . . . . . . 1 1 . . find_garrison 1 | . . . . . . . . . . . . . . . . . . . 1 . . . . . . . . . . . . . . . . link_fov 1 | . . . . . . . . . . 1 . . . . . . . . . . . . . . . . . . . . . . . . . scatter_targeting 3 | . . . . . . . . 2 . . . . . . . . . . . . . . . . . . . . . 1 . . . . . overload_power 1 | . . . . . . . . . . . . . . . . . . . 1 . . . . . . . . . . . . . . . . amplify_resonance 9 | . . . . . . . . . 2 1 . . . . . . 1 . . . . . . 1 . 1 1 . . 2 . . . . . disable_weapons 2 | . . . . . . . . . 2 . . . . . . . . . . . . . . . . . . . . . . . . . . go_dormant 2 | . . . . . . . . . 1 . . . . . . . . . . . . . . . . . . . . 1 . . . . . overwrite_iff 1 | . . . . . . . . . 1 . . . . . . . . . . . . . . . . . . . . . . . . . . formatsys_low 2 | . . . . . . 1 . 1 . . . . . . . . . . . . . . . . . . . . . . . . . . . formatsys_high 17 | . . . . . . . . 7 4 2 . . . . . . . . . . . . . . . . . . . 4 . . . . . Relay Couplers Released 63 | . . . . . 12 . 8 8 9 1 . . . . . . . 9 . . . . . 1 . 3 . . 1 9 . 2 . . . Machine Destruction 59 | . . . . . 12 . 8 4 9 1 . . . . . . . 9 . . . . . 1 . 3 . . 1 9 . 2 . . . Programmers 4 | . . . . . . . . 4 . . . . . . . . . . . . . . . . . . . . . . . . . . . Attached 28 | . . . . . . 1 2 4 7 4 . . . . . . 1 . 2 . . . . 1 . . 1 . . 3 1 1 . . . Fabnet Peak Effective % . | . . . . . . . . . . . . . . . . . . . . . . . . . . . . . . . . . . . . Robots Rewired 16 | . . . . . . . 3 . . . . . . 5 . . . . . . . . . . . . 8 . . . . . . . . Allies Hacked 2 | . . . . . . . . 1 . . . . . . . . . . . . . . . . . . 1 . . . . . . . . Hacks Repelled . | . . . . . . . . . . . . . . . . . . . . . . . . . . . . . . . . . . . . Allies | -11 -10 -9 -9 -8 -8 -8 -8 -7 -7 -7 -7 -7 -6 -6 -6 -6 -6 -6 -5 -5 -5 -5 -4 -4 -4 -4 -4 -4 -3 -3 -2 -2 -2 -1 -1 -------- Run | Yrd Mat Mat Min Mat Gar Mat Gar Fac Gar Fac Low Low Fac Ext Cet Arc Hub Gar Fac Upp Upp Zhi Pro Fac Was Fac Arm Lab Res Gar Res Qua Sec Acc Com Total Allies 68 | . . . . . 1 1 3 8 5 2 . . 1 10 5 . . . . . . . . . 20 . 8 . . 4 . . . . . Largest Group 20 | . . . . . 1 1 3 5 5 1 . . 1 10 11 7 5 . . . . . . . 20 20 8 . . 3 . . . . . Highest-Rated Group 886 | . . . . . 31 31 93 108 101 32 . . 26 423 758 625 473 . . . . . . . 886 879 412 . . 141 . . . . . Highest-Rated Ally 159 | . . . . . 31 31 31 32 32 32 . . 26 159 143 136 96 . . . . . . . 50 50 56 . . 47 . . . . . Total Orders 69 | . . . . . . . 3 2 10 3 . . . . 15 . 7 . 6 . . . . . . . . . . . . . . 11 12 STAY 26 | . . . . . . . 2 1 6 2 . . . . 10 . 4 . . . . . . . . . . . . . . . . . 1 FOLLOW 15 | . . . . . . . 1 1 4 1 . . . . 5 . 3 . . . . . . . . . . . . . . . . . . EXPLORE 17 | . . . . . . . . . . . . . . . . . . . 3 . . . . . . . . . . . . . . 7 7 RETURN 11 | . . . . . . . . . . . . . . . . . . . 3 . . . . . . . . . . . . . . 4 4 Ally Attacks 611 | . . . . . 18 8 15 42 49 4 . . . 58 25 16 80 . . . . . . . 9 173 101 . . 13 . . . . . Total Damage 17828 | . . . . . 212 103 271 744 1116 183 . . . 994 1039 500 3355 . . . . . . . 271 5077 3598 . . 365 . . . . . Kills 105 | . . . . . 3 2 5 8 7 2 . . . 4 6 2 20 . . . . . . . 1 33 11 . . 1 . . . . . Allies Corrupted 4 | . . . . . . . . . 1 . . . . . . . 3 . . . . . . . . . . . . . . . . . . Allies Melted . | . . . . . . . . . . . . . . . . . . . . . . . . . . . . . . . . . . . . Intel | -11 -10 -9 -9 -8 -8 -8 -8 -7 -7 -7 -7 -7 -6 -6 -6 -6 -6 -6 -5 -5 -5 -5 -4 -4 -4 -4 -4 -4 -3 -3 -2 -2 -2 -1 -1 ------- Run | Yrd Mat Mat Min Mat Gar Mat Gar Fac Gar Fac Low Low Fac Ext Cet Arc Hub Gar Fac Upp Upp Zhi Pro Fac Was Fac Arm Lab Res Gar Res Qua Sec Acc Com Active Infowar (turns) 22758 | 64 238 470 . 12 122 . . 1265 597 763 1611 1105 666 602 . 169 388 104 1261 1071 603 220 569 822 656 650 1288 15 828 1322 991 1600 762 898 1026 Sensors 15575 | . . . . . . . . . . 668 1608 1101 663 596 . 95 190 19 759 998 568 220 569 438 656 524 1022 15 795 159 758 1288 678 728 460 Terrain 5552 | . . . . . . . . . . 195 1593 1100 614 104 . 94 123 . 436 . 9 220 569 495 . . . . . . . . . . . Seismic 1368 | 64 238 470 . 12 122 . . 462 . . . . . . . . . . . . . . . . . . . . . . . . . . . Machine Analysis 1784 | . . . . . . . . 1187 597 . . . . . . . . . . . . . . . . . . . . . . . . . . Cloaking 5404 | . . . . . . . . . . . . . . . . . . . . . . . . . . . 231 . 682 974 779 1068 658 697 315 Jamming 13311 | . . . . . . . . . . . . . . . . 169 388 104 1097 353 119 212 569 822 656 650 1288 15 828 1322 991 1425 608 669 1026 ECM 1 | . . . . . . . . . . . . . . . . . . . . . . . . . . . . . . . . 1 . . . Robot Analysis Total 6 | . . . 1 . . . . . . . . . . . . . . . . . . 4 . . . . 1 . . . . . . . . Derelict Logs Recovered 10 | . . . 1 . . . . . . . 2 2 . . . . . . . 3 2 . . . . . . . . . . . . . . Drone Launches 25 | . . . . . . . . . . . . . . . . . . . 4 . . . . 1 . . . . . . . . . 10 10 Drone Recoveries 15 | . . . . . . . . . . . . . . . . . . . 2 . . . . . . . . . . . . . . 8 5 Exploration | -11 -10 -9 -9 -8 -8 -8 -8 -7 -7 -7 -7 -7 -6 -6 -6 -6 -6 -6 -5 -5 -5 -5 -4 -4 -4 -4 -4 -4 -3 -3 -2 -2 -2 -1 -1 ------------- Run | Yrd Mat Mat Min Mat Gar Mat Gar Fac Gar Fac Low Low Fac Ext Cet Arc Hub Gar Fac Upp Upp Zhi Pro Fac Was Fac Arm Lab Res Gar Res Qua Sec Acc Com Turns Passed 34198 | 144 1309 1419 460 1160 911 737 1410 1266 1113 2037 1650 1200 776 1152 453 605 388 982 1301 1079 624 220 569 847 656 650 1288 15 828 1322 991 1622 812 1007 1195 Spaces Moved 16332 | 64 591 639 177 470 380 312 535 554 491 1108 886 747 435 601 201 197 209 516 720 675 405 134 358 353 358 359 582 10 428 545 359 625 347 438 523 Core 147 | 19 . . . . . . . . . . . . . . . . . . . . . . . . . . . . . . . . . . 128 Treads 6661 | . . 154 177 470 380 312 535 219 . . . . . . . . . . 1 . . . . 67 358 359 582 10 428 545 359 625 347 438 295 Legs 178 | 45 133 . . . . . . . . . . . . . . . . . . . . . . . . . . . . . . . . . . Wheels 9330 | . 458 485 . . . . . 335 491 1108 886 747 435 601 201 197 209 516 719 675 405 134 358 286 . . . . . . . . . . 84 Hover . | . . . . . . . . . . . . . . . . . . . . . . . . . . . . . . . . . . . . Flight 16 | . . . . . . . . . . . . . . . . . . . . . . . . . . . . . . . . . . . 16 Fastest Speed 45 | 50 120 130 240 200 200 200 200 145 145 145 145 145 120 150 150 150 150 150 150 150 135 150 150 150 152 152 152 162 152 160 166 160 143 143 45 Average Speed 161 | 99 163 160 240 200 200 200 212 171 145 145 179 152 140 150 150 150 150 150 152 150 140 150 150 163 155 152 157 162 157 194 166 170 145 143 134 Slowest Speed 650 | 120 200 240 240 200 200 200 216 240 145 145 205 205 160 150 150 150 150 150 650 150 150 150 150 245 240 152 241 162 240 240 166 255 160 143 260 Overloaded Moves . | . . . . . . . . . . . . . . . . . . . . . . . . . . . . . . . . . . . . Propulsion Burnouts . | . . . . . . . . . . . . . . . . . . . . . . . . . . . . . . . . . . . . Robots Hopped . | . . . . . . . . . . . . . . . . . . . . . . . . . . . . . . . . . . . . Potential Cave-ins . | . . . . . . . . . . . . . . . . . . . . . . . . . . . . . . . . . . . . Cave-ins Triggered . | . . . . . . . . . . . . . . . . . . . . . . . . . . . . . . . . . . . . Teleports 1 | . . . . . . . . . . . . . . . . . . . . . . . . . . . 1 . . . . . . . . Exploration Rate (%) 45 | 4 94 59 53 41 50 20 53 15 54 30 91 65 14 84 66 75 19 66 23 72 60 60 59 15 97 13 47 5 15 62 14 59 19 21 34 Regions Visited 35 Branch Regions 16 Pre-discovered Areas 8 | . 2 2 . 1 . . . . . . . . . . . . . . . . . 3 . . . . . . . . . . . . . Known Exits Taken 24 | . . . . 1 . 1 . 1 . 1 1 1 1 1 1 1 1 . 1 1 1 1 1 . . 1 1 1 1 . 1 1 1 1 . Unknown Exits Taken 4 | 1 1 1 1 . . . . . . . . . . . . . . . . . . . . . . . . . . . . . . . . Scrap Searched 13 | . . . 1 . . . . . . . 1 2 . . . . . . . 3 5 . 1 . . . . . . . . . . . . Spaces Dug 122 | . . . . 1 . . . 1 2 11 8 4 11 . . . 2 3 5 4 . . 5 6 . . 6 . 4 1 8 21 6 10 3 Terrain Destroyed 1742 | . . . . 1 1 2 7 1 2 11 8 4 15 20 . . 177 11 43 29 24 . 10 128 1 15 18 . 14 40 115 100 9 14 922 Melee 31 | . . . . . . . . 1 2 11 8 3 6 . . . . . . . . . . . . . . . . . . . . . . Projectile 328 | . . . . 1 1 2 7 . . . . 1 9 1 . . 4 1 11 13 . . 10 36 1 7 17 . 14 40 92 28 9 14 9 AOE 1382 | . . . . . . . . . . . . . . 19 . . 173 10 32 16 24 . . 92 . 8 . . . . 23 72 . . 913 Terrain Rammed . | . . . . . . . . . . . . . . . . . . . . . . . . . . . . . . . . . . . . Walls Destroyed . | . . . . . . . . . . . . . . . . . . . . . . . . . . . . . . . . . . . . Machines Disabled . | . . . . . . . . . . . . . . . . . . . . . . . . . . . . . . . . . . . . Actions | -11 -10 -9 -9 -8 -8 -8 -8 -7 -7 -7 -7 -7 -6 -6 -6 -6 -6 -6 -5 -5 -5 -5 -4 -4 -4 -4 -4 -4 -3 -3 -2 -2 -2 -1 -1 --------- Run | Yrd Mat Mat Min Mat Gar Mat Gar Fac Gar Fac Low Low Fac Ext Cet Arc Hub Gar Fac Upp Upp Zhi Pro Fac Was Fac Arm Lab Res Gar Res Qua Sec Acc Com Total 21350 | 102 763 861 197 587 449 376 665 772 791 1396 916 788 556 795 334 440 252 639 849 714 444 151 376 473 453 428 834 9 527 703 600 1001 561 718 830 Wait 1648 | 1 7 28 5 7 4 20 13 66 157 64 2 4 38 79 82 186 13 16 49 5 20 . . 11 52 14 119 . 13 21 107 98 84 183 80 Move 16299 | 63 590 638 176 469 379 311 534 554 490 1107 885 746 434 600 200 196 208 515 719 674 404 133 357 353 357 358 581 9 427 544 358 624 346 437 523 Hop . | . . . . . . . . . . . . . . . . . . . . . . . . . . . . . . . . . . . . Pick Up 309 | 7 28 33 2 13 4 4 13 21 9 29 1 3 9 3 10 5 2 4 5 2 . 1 1 4 7 8 4 . 9 5 7 23 9 3 21 Fast Attach 149 | 5 . 6 . 5 . 1 2 6 . 9 . 3 4 1 3 3 1 1 5 2 1 5 1 2 10 5 12 . 8 15 . 13 10 2 8 Attach 150 | 2 5 4 . 3 1 1 7 9 13 10 . 3 5 3 5 4 1 . 5 1 . . 1 9 4 . 3 . 4 2 4 8 3 2 28 Detach 22 | . . 1 . . . 1 . . . 1 . 1 1 . 1 . . . . . . . 1 . 1 . . . 2 1 . 3 . 1 7 Swap 679 | 1 14 17 2 17 3 5 8 34 27 35 12 13 15 21 5 5 7 15 32 9 12 3 3 25 2 14 28 . 24 35 50 80 41 33 32 Drop 328 | 1 12 41 2 17 4 5 9 17 2 17 . 3 11 3 9 6 2 4 3 4 1 6 1 4 13 10 13 . 14 19 3 36 17 1 18 Fire 1469 | 22 105 91 8 43 47 24 76 55 39 72 6 9 31 49 19 35 18 44 30 17 6 3 11 65 6 19 70 . 23 61 65 110 40 50 100 Melee 106 | . . . . . . 3 . 4 30 34 10 3 8 . . . . . . . . . . . . . . . . . . 2 11 . 1 Ram 1 | . . . . . . . . . . . . . . . . . . . 1 . . . . . . . . . . . . . . . . Kick 2 | . 2 . . . . . . . . . . . . . . . . . . . . . . . . . . . . . . . . . . Crush 45 | . . 2 1 13 . 1 . . . 1 . . . . . . . . . . . . . . . . . . 3 . 6 4 . 6 8 Escape Stasis 125 | . . . . . 7 . 2 . 24 16 . . . 32 . . . 40 . . . . . . . . . . . . . . . . 4 Rewire 17 | . . . . . . . 1 6 . 1 . . . 4 . . . . . . . . . . 1 . 4 . . . . . . . . Trap 1 | . . . 1 . . . . . . . . . . . . . . . . . . . . . . . . . . . . . . . . Miscellaneous . | . . . . . . . . . . . . . . . . . . . . . . . . . . . . . . . . . . . . Route ------- -11/Scrapyard -10/Materials (discovered 4 exits: *Mat x3 / [*Min]) -9/Materials (discovered 2 exits: *Mat / *Min) -9/Mines (discovered 2 exits: *Mat x2) -8/Materials (discovered 2 exits: Sto / Gar) -8/Garrison (discovered 4 exits: *Mat x4) -8/Materials (discovered 6 exits: Fac x3 / *Sto x2 / Gar) -8/Garrison -7/Factory -7/Garrison (discovered 2 exits: *Fac x2) -7/Factory (discovered 3 exits: *Fac x2 / *Low) -7/Lower Caves -7/Lower Caves (discovered 2 exits: *Fac / *Zio) -6/Factory (discovered 2 exits: *Fac / *Ext) -6/Extension (discovered 2 exits: *Fac / *Cet) -6/Cetus (discovered 2 exits: *Fac / *Arc) -6/Archives (discovered 3 exits: *Fac / *Hub x2) -6/Hub_04(d) (discovered 2 exits: *Fac / Gar) -6/Garrison (discovered 2 exits: *Fac x2) -5/Factory (discovered 2 exits: *Fac / *Upp) -5/Upper Caves -5/Upper Caves -5/Zhirov -4/Proximity Caves -4/Factory (discovered 2 exits: Res / Upp) -4/Waste -4/Factory -4/Armory (discovered 3 exits: *Res x2 / *Lab) -4/Lab -3/Research -3/Garrison (discovered 2 exits: *Res x2) -2/Research (discovered 2 exits: Acc / *Qua) -2/Quarantine (discovered 3 exits: *Acc / *Sec / *Frg) -2/Section 7 -1/Access -1/Command History --------- Turn | Location | Event 9 | -11/Scrapyard | Discovered new exit (range 14) 145 | -11/Scrapyard | Entered Materials 279 | -10/Materials | Discovered new exit (range 5) 312 | -10/Materials | Build established: Mutant 342 | -10/Materials | Discovered new exit (range 16) 1079 | -10/Materials | Discovered new exit (range 9) 1133 | -10/Materials | Discovered new exit (range 16) 1245 | -10/Materials | Derelicts attacked the area 1338 | -10/Materials | Lost 3 parts (1p1n1u) 1454 | -10/Materials | Entered another Materials area 1454 | -9/Materials | Evolved 2 slots: Utility x1, Weapon x1 1924 | -9/Materials | Build established: Tank 2230 | -9/Materials | Build established: Scavenger-Tank 2642 | -9/Materials | Discovered new exit (range 11) 2654 | -9/Materials | First assault squad dispatched 2683 | -9/Materials | Build established: Tank 2822 | -9/Materials | Discovered new exit (range 14) 2873 | -9/Materials | Entered Mines 2935 | -9/Mines | A weapon hastily lodged in a ceiling crevice suddenly fell to the ground 3027 | -9/Mines | Met a Derelict shopkeep closing up shop 3238 | -9/Mines | Discovered new exit (range 7) 3274 | -9/Mines | Found a hidden stash of uninstalled traps 3323 | -9/Mines | Discovered new exit (range 5) 3333 | -9/Mines | Entered Materials 3333 | -8/Materials | Evolved 2 slots: Propulsion x1, Utility x1 3334 | -8/Materials | Identified exit to Storage 3634 | -8/Materials | Build established: Scavenger-Tank 4485 | -8/Materials | Identified exit to Garrison 4493 | -8/Materials | Entered Garrison 4539 | -8/Garrison | Discovered new exit (range 43) 4539 | -8/Garrison | Discovered new exit (range 52) 4539 | -8/Garrison | Discovered new exit (range 75) 4539 | -8/Garrison | Discovered new exit (range 66) 4648 | -8/Garrison | Garrison Relay disabled 4750 | -8/Garrison | Rescued a captive Derelict 4835 | -8/Garrison | Triggered checkpoint 4853 | -8/Garrison | Triggered checkpoint 4935 | -8/Garrison | Installed Relay Interface Framework 5091 | -8/Garrison | Triggered checkpoint 5122 | -8/Garrison | Garrison Relay disabled 5252 | -8/Garrison | Garrison Relay disabled 5404 | -8/Garrison | Entered Materials 5404 | -8/Materials | Accompanied by 1 ally 5428 | -8/Materials | Identified exit to Factory 5732 | -8/Materials | Identified exit to Garrison 6141 | -8/Materials | Entered Garrison 6141 | -8/Garrison | Accompanied by 1 ally 6478 | -8/Garrison | Lost 4 parts (2n1u1w) 6711 | -8/Garrison | Build established: Tank 7017 | -8/Garrison | Triggered checkpoint 7042 | -8/Garrison | Garrison Relay disabled 7112 | -8/Garrison | Garrison Relay disabled 7173 | -8/Garrison | Discovered exit to Factory (range 14) 7256 | -8/Garrison | Expanded RIF knowledge: Alert ID Control 7551 | -8/Garrison | Entered Factory 7551 | -7/Factory | Accompanied by 1 ally 7551 | -7/Factory | Evolved 2 slots: Propulsion x1, Utility x1 7573 | -7/Factory | Build established: Bothacker-Gunner 7846 | -7/Factory | Repaired Cld. Ion Engine 8072 | -7/Factory | Garrison activated, responded to threat 8205 | -7/Factory | Garrison activated, responded to threat 8296 | -7/Factory | Lost 4 allies 8693 | -7/Factory | Build established: Bothacker-Tank 8756 | -7/Factory | P-70 Sage assimilated allied Guardian 4a 8817 | -7/Factory | Identified exit to Garrison 8817 | -7/Factory | Entered Garrison 8817 | -7/Garrison | Accompanied by 2 allies 8832 | -7/Garrison | Lost 5 parts (2n2u1w) 8877 | -7/Garrison | Triggered checkpoint 8897 | -7/Garrison | Garrison Relay disabled 9048 | -7/Garrison | Build established: Bothacker-Mutant 9209 | -7/Garrison | Triggered checkpoint 9219 | -7/Garrison | Triggered checkpoint 9241 | -7/Garrison | Triggered checkpoint 9329 | -7/Garrison | Triggered checkpoint 9451 | -7/Garrison | Triggered checkpoint 9464 | -7/Garrison | Garrison Relay disabled 9589 | -7/Garrison | Triggered checkpoint 9671 | -7/Garrison | Discovered new exit (range 13) 9836 | -7/Garrison | Discovered new exit (range 12) 9886 | -7/Garrison | Expanded RIF knowledge: Zone Cloak 9927 | -7/Garrison | Core integrity fell below 50% 9930 | -7/Garrison | Entered Factory 9954 | -7/Factory | Lost 6 parts (3n3w) 10411 | -7/Factory | Discovered new exit (range 5) 10468 | -7/Factory | Garrison activated, responded to threat 10555 | -7/Factory | Discovered new exit (range 47) 10840 | -7/Factory | Fabricated Adv. Terrain Scanner (x2) 10970 | -7/Factory | Repaired Arm. Huge Wheel 11061 | -7/Factory | Discovered new exit (range 26) 11526 | -7/Factory | Cargo convoy interrupted 11966 | -7/Factory | Identified exit to Lower Caves 11967 | -7/Factory | Entered Lower Caves 12256 | -7/Lower Caves | Build established: Assassin 12486 | -7/Lower Caves | Learned Factory terminal intel 12626 | -7/Lower Caves | Encountered a Warlord checkpoint 12630 | -7/Lower Caves | Build established: Skirmisher 12860 | -7/Lower Caves | Entered a destroyed Warlord outpost 13013 | -7/Lower Caves | Learned Factory stockpile data 13602 | -7/Lower Caves | Discovered new exit (range 5) 13613 | -7/Lower Caves | Identified exit to Lower Caves 13617 | -7/Lower Caves | Entered another Lower Caves area 13663 | -7/Lower Caves | Discovered new exit (range 12) 13682 | -7/Lower Caves | Identified exit to Factory 13714 | -7/Lower Caves | Learned 4 Factory zone layouts 13779 | -7/Lower Caves | Encountered a Warlord checkpoint 13820 | -7/Lower Caves | Spotted B-75 Beast 13889 | -7/Lower Caves | Destroyed B-75 Beast 14066 | -7/Lower Caves | Learned Factory garrison access intel 14216 | -7/Lower Caves | Discovered new exit (range 15) 14234 | -7/Lower Caves | Identified exit to Zion 14439 | -7/Lower Caves | Build established: Assassin 14817 | -7/Lower Caves | Entered Factory 14817 | -6/Factory | Evolved 2 slots: Utility x1, Weapon x1 14820 | -6/Factory | Loaded intel: 28 terminal locations 14821 | -6/Factory | Loaded intel: 4 garrison access locations 15296 | -6/Factory | Discovered new exit (range 4) 15300 | -6/Factory | Identified exit to Factory 15314 | -6/Factory | Discovered new exit (range 6) 15318 | -6/Factory | Identified exit to Extension 15593 | -6/Factory | Entered Extension 15752 | -6/Extension | Destroyed 7 combat bots 15894 | -6/Extension | Rescued A7 16183 | -6/Extension | Build established: Skirmisher 16238 | -6/Extension | Spotted B-75 Beast 16248 | -6/Extension | Destroyed B-75 Beast 16259 | -6/Extension | Spotted B-75 Beast 16265 | -6/Extension | Destroyed B-75 Beast 16352 | -6/Extension | Rescued a captive Derelict 16353 | -6/Extension | Rescued a captive Derelict 16401 | -6/Extension | Rescued a captive Derelict 16401 | -6/Extension | Rescued a captive Derelict 16704 | -6/Extension | Discovered exit to Factory (range 10) 16706 | -6/Extension | Discovered new exit (range 6) 16713 | -6/Extension | Identified exit to Cetus 16745 | -6/Extension | Entered Cetus 16745 | -6/Cetus | Accompanied by 7 allies (A7) 16750 | -6/Cetus | Acquired a Cetus Manufacturing Module code from A7 16769 | -6/Cetus | Spotted Cetus Guard 16770 | -6/Cetus | Spotted Cetus Guard 16775 | -6/Cetus | Destroyed Cetus Guard 16775 | -6/Cetus | Spotted Cetus Guard 16780 | -6/Cetus | Destroyed Cetus Guard 16783 | -6/Cetus | Spotted Cetus Guard 16787 | -6/Cetus | Allies destroyed Cetus Guard 16792 | -6/Cetus | Destroyed Cetus Guard 16874 | -6/Cetus | Started Cetus Manufacturing Module 16884 | -6/Cetus | Escorted A7 to Cetus Mainframe 16899 | -6/Cetus | Manufactured an Enhanced Grunt 16924 | -6/Cetus | Manufactured an Enhanced Grunt 16927 | -6/Cetus | Discovered new exit (range 15) 16948 | -6/Cetus | Identified exit to Archives 16949 | -6/Cetus | Manufactured an Enhanced Grunt 16974 | -6/Cetus | Manufactured an Enhanced Grunt 16999 | -6/Cetus | Manufactured an Enhanced Grunt 17063 | -6/Cetus | Spotted Cetus Guard 17064 | -6/Cetus | Spotted Cetus Guard 17064 | -6/Cetus | Spotted Cetus Guard 17073 | -6/Cetus | Destroyed Cetus Guard 17075 | -6/Cetus | Spotted Cetus Guard 17084 | -6/Cetus | Allies destroyed Cetus Guard 17089 | -6/Cetus | Allies destroyed Cetus Guard 17090 | -6/Cetus | Allies destroyed Cetus Guard 17104 | -6/Cetus | Lost 3 allies 17104 | -6/Cetus | Discovered exit to Factory (range 15) 17113 | -6/Cetus | Met Revision 17 17198 | -6/Cetus | Entered Archives 17198 | -6/Archives | Accompanied by 7 allies (A7) 17203 | -6/Archives | Received a hacking code to weaken MAIN.C 17273 | -6/Archives | Discovered new exit (range 16) 17277 | -6/Archives | Build established: Commander-Tank 17386 | -6/Archives | Discovered new exit (range 15) 17395 | -6/Archives | System corruption reached 10% 17664 | -6/Archives | Discovered exit to Factory (range 15) 17699 | -6/Archives | Identified exit to Hub_04(d) 17803 | -6/Archives | Entered Hub_04(d) 17803 | -6/Hub_04(d) | Accompanied by 5 allies 17852 | -6/Hub_04(d) | Identified exit to Garrison 17954 | -6/Hub_04(d) | Discovered exit to Factory (range 12) 17956 | -6/Hub_04(d) | Spotted B-75 Beast 17962 | -6/Hub_04(d) | Destroyed B-75 Beast 18101 | -6/Hub_04(d) | Network Hub disabled 18153 | -6/Hub_04(d) | First assault squad dispatched 18185 | -6/Hub_04(d) | Lost 4 allies 18191 | -6/Hub_04(d) | Entered Garrison 18201 | -6/Garrison | Build established: Scavenger-Tank 18209 | -6/Garrison | Triggered checkpoint 18271 | -6/Garrison | Expanded RIF knowledge: Patrol Navigation 18288 | -6/Garrison | Garrison Relay disabled 18430 | -6/Garrison | Spotted B-75 Beast 18452 | -6/Garrison | Destroyed B-75 Beast 18475 | -6/Garrison | Triggered checkpoint 18514 | -6/Garrison | Triggered checkpoint 18535 | -6/Garrison | Triggered checkpoint 18569 | -6/Garrison | Destroyed 10 combat bots 18628 | -6/Garrison | Discovered exit to Factory (range 15) 18699 | -6/Garrison | Triggered checkpoint 18731 | -6/Garrison | Garrison Relay disabled 18989 | -6/Garrison | Triggered checkpoint 19018 | -6/Garrison | Garrison Relay disabled 19027 | -6/Garrison | Build established: Bothacker-Tank 19053 | -6/Garrison | Discovered exit to Factory (range 10) 19173 | -6/Garrison | Entered Factory 19173 | -5/Factory | Evolved 2 slots: Utility x2 19715 | -5/Factory | Discovered new exit (range 6) 19721 | -5/Factory | Identified exit to Upper Caves 20111 | -5/Factory | Repaired Centrium Medium Armor Plating 20167 | -5/Factory | Discovered new exit (range 9) 20179 | -5/Factory | Identified exit to Factory 20373 | -5/Factory | First assault squad dispatched 20474 | -5/Factory | Entered Upper Caves 20616 | -5/Upper Caves | Build established: Bothacker-Skirmisher 20774 | -5/Upper Caves | Learned Factory trap positions 21283 | -5/Upper Caves | Identified exit to Upper Caves 21334 | -5/Upper Caves | Attracted the attention of an 0b10 checkpoint 21359 | -5/Upper Caves | Learned Factory terminal intel 21553 | -5/Upper Caves | Entered another Upper Caves area 21714 | -5/Upper Caves | Build established: Scavenger-Skirmisher 21716 | -5/Upper Caves | Learned Factory trap positions 21831 | -5/Upper Caves | Entered an active Warlord outpost 21843 | -5/Upper Caves | Learned Armory emergency access door positions 22155 | -5/Upper Caves | Discovered new exit (range 14) 22176 | -5/Upper Caves | Identified exit to Zhirov 22177 | -5/Upper Caves | Entered Zhirov 22177 | -5/Zhirov | Discovered new exit (range 3) 22179 | -5/Zhirov | Identified exit to Proximity Caves 22204 | -5/Zhirov | Met Zhirov 22245 | -5/Zhirov | Learned location of Testing (-3) 22245 | -5/Zhirov | Learned location of Command (-1) 22254 | -5/Zhirov | Zhirov requested help retrieving the SGEMP Prototype 22277 | -5/Zhirov | Found Alien Artifact 22277 | -5/Zhirov | Identified Integrated Reactor 22277 | -5/Zhirov | Installed Integrated Reactor, increased core energy generation (+10) 22339 | -5/Zhirov | Found Alien Artifact 22397 | -5/Zhirov | Entered Proximity Caves 22804 | -4/Proximity Caves | Discovered exit to Factory (range 8) 22964 | -4/Proximity Caves | System corruption reached 10% 22966 | -4/Proximity Caves | Entered Factory 22966 | -4/Factory | Evolved 2 slots: Utility x2 22967 | -4/Factory | Identified exit to Research 22967 | -4/Factory | Identified exit to Upper Caves 22968 | -4/Factory | Loaded intel: 100 trap records 22969 | -4/Factory | Loaded intel: 26 terminal locations 23600 | -4/Factory | Lost 4 parts (1n1u2w) 23646 | -4/Factory | Destroyed 8 combat bots 23729 | -4/Factory | Build established: Scavenger-Tank 23741 | -4/Factory | Identified exit to Garrison 23795 | -4/Factory | Lost 3 parts (1n1u1w) 23799 | -4/Factory | Destroyed 7 combat bots 23813 | -4/Factory | Sucked down chute 23813 | -4/Factory | Entered Waste 23814 | -4/Waste | Joined by Warlord forces that had cleared the area 23887 | -4/Waste | Found Damper Plating 23986 | -4/Waste | Discovered new exit (range 12) 24021 | -4/Waste | Identified exit to Factory 24121 | -4/Waste | Found Prototype Launcher 24121 | -4/Waste | Identified Point Singularity Launcher 24143 | -4/Waste | A Compactor rumbled back to life 24143 | -4/Waste | Spotted C-40 Crusher 24154 | -4/Waste | Allies destroyed C-40 Crusher 24469 | -4/Waste | Entered Factory 24469 | -4/Factory | Accompanied by 20 allies 24470 | -4/Factory | Loaded intel: 70 trap records 24969 | -4/Factory | First assault squad dispatched 25039 | -4/Factory | Discovered new exit (range 15) 25108 | -4/Factory | Identified exit to Armory 25119 | -4/Factory | Lost 7 allies 25119 | -4/Factory | Entered Armory 25119 | -4/Armory | Accompanied by 7 allies 25120 | -4/Armory | Met VL-GR5, who suggested a friendly competition 25202 | -4/Armory | Discovered exit to Research (range 77) 25252 | -4/Armory | Lost 7 allies 25624 | -4/Armory | Lost 3 allies 26025 | -4/Armory | Repaired Centrium Medium Armor Plating? 26292 | -4/Armory | Fabricated Exp. Heat Sink (x1) 26318 | -4/Armory | Identified Transdimensional Reconstructor 26318 | -4/Armory | Warped through subspace to slip node 26318 | -4/Armory | Discovered new exit (range 1) 26318 | -4/Armory | Identified exit to Lab 26359 | -4/Armory | Build established: Tank 26386 | -4/Armory | Discovered exit to Research (range 9) 26407 | -4/Armory | Entered Lab 26407 | -4/Lab | Discovered exit to Research (range 9) 26422 | -4/Lab | Entered Research 26422 | -3/Research | Evolved 2 slots: Power x1, Utility x1 26622 | -3/Research | Revision forces began assault on 0b10 26669 | -3/Research | Met up with Revision 17++ 26690 | -3/Research | Build established: Infiltrator-Tank 27052 | -3/Research | Build established: Scavenger-Tank 27122 | -3/Research | Research terminal network offline 27141 | -3/Research | Spotted B-86 Titan 27149 | -3/Research | Destroyed B-86 Titan 27172 | -3/Research | Spotted Striker 27176 | -3/Research | Lost 5 allies 27176 | -3/Research | Destroyed Striker 27248 | -3/Research | Identified exit to Garrison 27250 | -3/Research | Entered Garrison 27332 | -3/Garrison | Garrison Relay disabled 27407 | -3/Garrison | Spotted B-86 Titan 27428 | -3/Garrison | Destroyed B-86 Titan 27498 | -3/Garrison | Triggered checkpoint 27533 | -3/Garrison | Triggered checkpoint 27583 | -3/Garrison | P-80 Master assimilated allied Veteran 8d 27631 | -3/Garrison | Garrison Relay disabled 27712 | -3/Garrison | Q-Series assembled to engage unique threat in Research 27721 | -3/Garrison | Discovered new exit (range 15) 27752 | -3/Garrison | Identified exit to Research 27810 | -3/Garrison | QS Assembler disabled 27858 | -3/Garrison | Found Prototype Launcher 27858 | -3/Garrison | Identified Tactical Quantum Warhead 27894 | -3/Garrison | Found Prototype Processor 27894 | -3/Garrison | Identified Exp. Signal Interpreter 28167 | -3/Garrison | Spotted B-86 Titan 28211 | -3/Garrison | Spotted B-86 Titan 28232 | -3/Garrison | Destroyed B-86 Titan 28312 | -3/Garrison | Discovered exit to Research (range 12) 28572 | -3/Garrison | Entered Research 28572 | -2/Research | Evolved 2 slots: Propulsion x2 28979 | -2/Research | Discovered new exit (range 69) 29322 | -2/Research | First assault squad dispatched 29529 | -2/Research | Discovered new exit (range 10) 29562 | -2/Research | Identified exit to Quarantine 29563 | -2/Research | Entered Quarantine 29841 | -2/Quarantine | Spotted Alpha 7 29881 | -2/Quarantine | Destroyed Alpha 7 29907 | -2/Quarantine | Found Prototype Device 29918 | -2/Quarantine | Identified Exp. ECM Suite 29929 | -2/Quarantine | Found Sigix Terminator 29988 | -2/Quarantine | Found Phase Armor 30215 | -2/Quarantine | Discovered new exit (range 7) 30257 | -2/Quarantine | Identified exit to Access 30269 | -2/Quarantine | Found Alien Impact Weapon 30271 | -2/Quarantine | Identified Core Stripper 30813 | -2/Quarantine | First assault squad dispatched 30842 | -2/Quarantine | Spotted Fortress 30855 | -2/Quarantine | Destroyed Fortress 30886 | -2/Quarantine | Found Prototype Device 30887 | -2/Quarantine | Identified Thermal Barrier 30893 | -2/Quarantine | Found Prototype Device 30894 | -2/Quarantine | Identified Exp. Force Field 30941 | -2/Quarantine | Found Prototype Reactor 30941 | -2/Quarantine | Identified Vortex Chain Reactor 30950 | -2/Quarantine | Found Prototype Device 30951 | -2/Quarantine | Identified Exp. EM Shield 30962 | -2/Quarantine | Found Prototype Protection 30963 | -2/Quarantine | Identified Centrium Heavy Armor Plating 30969 | -2/Quarantine | Found Vortex Chain Reactor 31173 | -2/Quarantine | Discovered new exit (range 6) 31173 | -2/Quarantine | Discovered new exit (range 6) 31179 | -2/Quarantine | Identified exit to Protoforge 31184 | -2/Quarantine | Identified exit to Section 7 31185 | -2/Quarantine | Entered Section 7 31232 | -2/Section 7 | Spotted S7 Guard 31289 | -2/Section 7 | Destroyed S7 Guard 31321 | -2/Section 7 | Found Hvy. Regenerative Plating 31340 | -2/Section 7 | Found Alien Artifact 31340 | -2/Section 7 | Identified Core Membrane 31340 | -2/Section 7 | Installed Core Membrane, gained immunity to corruption 31368 | -2/Section 7 | Spotted S7 Guard 31384 | -2/Section 7 | Destroyed S7 Guard 31396 | -2/Section 7 | Found Hvy. Regenerative Plating 31436 | -2/Section 7 | Found Alien Artifact 31531 | -2/Section 7 | Found Integrated Reactor 31531 | -2/Section 7 | Installed Integrated Reactor, increased core energy generation (+10) 31547 | -2/Section 7 | Discovered exit to Access (range 11) 31608 | -2/Section 7 | Found Integrated Dissipator 31608 | -2/Section 7 | Installed Integrated Dissipator, increased core heat dissipation (+20) 31737 | -2/Section 7 | Build established: Infiltrator-Gunner 31822 | -2/Section 7 | Core integrity fell below 50% 31997 | -2/Section 7 | Entered Access 31997 | -1/Access | Evolved 2 slots: Power x1, Utility x1 32417 | -1/Access | Spotted B-99 Colossus 32867 | -1/Access | Discovered new exit (range 7) 32874 | -1/Access | Identified exit to Command 33004 | -1/Access | Entered Command 33504 | -1/Command | First assault squad dispatched 33546 | -1/Command | Phase Generator disabled 33803 | -1/Command | Spotted B-99 Colossus 33846 | -1/Command | Destroyed B-99 Colossus 33874 | -1/Command | Lost 4 parts (1p1n1u1w) 33916 | -1/Command | Found Prototype Ballistic Gun 33924 | -1/Command | Found Prototype Ballistic Gun 33932 | -1/Command | Identified Multirail (x2) 34024 | -1/Command | Fired Sigix Terminator 34024 | -1/Command | Destroyed Combat Programmer 34033 | -1/Command | Spotted M Guard 34037 | -1/Command | Spotted M Guard 34037 | -1/Command | Spotted Combat Programmer 34041 | -1/Command | Destroyed Combat Programmer 34121 | -1/Command | Core integrity fell below 50% 34123 | -1/Command | Released all parts (10) 34154 | -1/Command | Lost 21 parts (2p6n7u6w) 34192 | -1/Command | Spotted Executioner 34192 | -1/Command | Spotted Striker 34192 | -1/Command | Spotted Alpha 7 34192 | -1/Command | Spotted Executioner 34192 | -1/Command | Spotted Executioner 34192 | -1/Command | Spotted Executioner 34193 | -1/Command | Spotted Striker 34193 | -1/Command | Spotted Alpha 7 34195 | -1/Command | Spotted B-99 Colossus 34195 | -1/Command | Spotted B-99 Colossus 34198 | -1/Command | Core integrity fell below 20% 34199 | -1/Command | Destroyed by Alpha 7 with Multirail Last Messages --------------- 34197_ Knocked back. 34197_ Triggered Stasis Trap. 34197_ A bubble of rippling energy engulfs the area. 34197_ Field strength at 94. 34197_ Penetrated by Slug. 34198_ Field strength at 57. 34198_ Penetrated by Slug. 34198_ Slug penetrates Wall. 34198_ Penetrated by Slug. 34198_ Slug penetrates Wall. 34199_ Slug penetrates Executioner. 34199_ Penetrated by Slug. 34199_ Slug penetrates Wall. 34199_ Penetrated by Slug. 34199_ Field strength at 7. 34199_ Penetrated by Slug. 34199_ Stasis field depleted. 34199_ Penetrated by Slug. 34199_ Slug penetrates Wall. 34199_ Penetrated by Slug. Map ----- +----------------------------------------------------+ | ??# + #??????????????# | | ??# #########################??????????????#### | | ??## ##?????????????????????????????????????????? | | ???# #??????????????????????????????????????????? | | ???# #??????????????????????????????????????????? | | ???# #??????????????????????????????????????????? | | #### #??????????????????????????????????????????? | | #??????????????????????????????????????????? | | #??????????????????????????????????????????? | | ##########??????????? ?????????????????????? | | ## #??????????? ?????????????????????? | | #### ## #?? ?????? ????????????????????? | | ???# ## #?# """"""^?????????????????????? | | ???# ## #?# ?????????????????????? | | ???# h## #?? BB BB?????????????????????? | | ??## h## #?? BB BB?????????????????????? | | ??# # #???;; #?????????????????????? | | ??# # #???? ?????????????????????? | | ??# n #???##E #?????????????????????? | | ??# # #???# ^ ?????????????????????? | | ??## ## "" #???##E ##????????????????????? | | ???# ## "" #???# E ?????????????????????? | | ???# ## "T #???## EoK##????????????????????? | | ???# ## "" #???# K #????????????????????? | | ???# ## "" #????#7 ^7#?????????????????????? | | ???# ?# #????# ^@%#?????????????????????? | | ???# ?# #????##////##?????????????????????? | | ???# #####+#######??# % ###########????????????? | | ???# #??#% # #????????????? | | ???# ########### #??# % # #????????????? | | ???#+############Y##?# ; #????????????? | | ?? ### # #????????????? | | ?? = + # "" #????????????? | | ?? ######;# """" #????????????? | | ??? #?????## """" #????????????? | | ??? #??????# "" #????????????? | | ???? """"T"""" #??????###########????????????? | | ???????"""""""" #?????????????????????????????? | | ?????????##########??????????????????????????????? | | | | | | | | | | | | | | | | | | | | | | | +----------------------------------------------------+ Best States ------------- Heat Dissipation 162 Energy Generation 93 Energy Capacity 940 Matter Stores 300 Matter Capacity 300 Sight Range 16 Robot Scan Range 16 Terrain Scan Range 20 Terrain Scan Density 85 Jamming Range 14 Cloak Strength 4 Corruption Containment 12 Armor Coverage 1200 Resistance: TH 50 Resistance: EX 50 Resistance: EM 75 Core Shielding 20 Point Defense Rating 240 Evasion (%) 61 Targeting Accuracy 8 Target Analysis 8 Core Analysis 6 Recoil Reduction 6 Kinecelleration 40 Offensive Hacking 10 Relay Coupler Types 4 Relay Coupler Value 66 Item Schematics ----------------- Hacking Suite | -9/Materials | Scanalyzed Lgt. Armor Plating | -9/Materials | Scanalyzed Plasma Cutter | -9/Materials | Scanalyzed Imp. Ion Engine | -9/Materials | Extracted Spread Laser | -9/Materials | Extracted Wave Gun | -6/Extension | Hacked Assault Drone Bay | -5/Zhirov | Free Exp. Heat Sink | -5/Zhirov | Free Exp. Optical Array | -5/Zhirov | Free Imp. Arc Thrower | -5/Zhirov | Free Hds. Centrium Leg | -2/Quarantine | Archive Tiamat Missile Launcher | -2/Quarantine | Archive Hvy. Dispersion Rifle | -2/Quarantine | Archive Imp. Lightning Gun | -2/Quarantine | Archive Imp. Quantum Reactor | -2/Quarantine | Archive Electron Diverter | -2/Quarantine | Archive Robot Schematics ------------------ None Fabricated ------------ Adv. Terrain Scanner | x2 | -7/Factory | Preloaded Exp. Heat Sink | x1 | -4/Armory Repaired ---------- Cld. Ion Engine | 8% | -7/Factory Arm. Huge Wheel | 60% | -7/Factory Centrium Medium Armor Plating | 1% | -5/Factory Centrium Medium Armor Plating | 31% | -4/Armory Studied --------- Lgt. Treads | -9/Materials | Hacked Hvy. Assault Rifle | -9/Materials | Hacked Arm. Huge Wheel | -6/Factory | Hacked Lrn. Missile Launcher | -6/Factory | Hacked Alien Tech Used ----------------- Integrated Reactor Transdimensional Reconstructor Phase Armor Core Stripper Core Membrane Integrated Dissipator Core Physics Calibrator Sigix Terminator Achievements -------------- Oppo Buddy Challenges ------------ None Game ------ Seed NuclearLightForcewell Manual? 0 Play Time 07:38:13 Cumulative 607.8 hours Start 2026.01.03 @ 20:25:23 End 2026.01.16 @ 02:23:34 Sessions 34 Manual Loads 0 Difficulty Rogue Special Mode None Game No. 230 Rogue 230 Adventurer 0 Explorer 0 Win Type - Total 24 Types 13/1/5/2/0/1/1/1/0/0 Lore% 92 Gallery% 85 Achievement% 66 Wizard Run 0 Options --------- Layout 0 ASCII 0 Keyboard 1 Movement Numpad Keybinds 0 Fullscreen 2 Font 18/SmallcapsGlow Map View 76x50 Zoom Use 0% Tactical HUD 1 Map Filters NONE Filters NONE Steam 1 RUN: 67f7c64a-b268-4ae5-9861-6043bf0d5c8c